Workbook

Sheet INTRODUCTION
B2: Ce logiciel permet d'éditer les courriers d'avancements d'échelons à envoyer aux
B3: agents directement concernés en notant qu'une seule fois :
B4: l'identité de l'agent et la date d'effet de son avancement d'échelon.
B6: C'est donc un gain de temps non négligeable dans la préparation très chronophage
B7: des CAP et également une uniformisation de toutes les informations transmises
B8: aux agents par tous les représentants SUD Santé des CAPL et CAPD.
B10: 1) ACTIVATION DES MACROS
B12: Pour fonctionner, ce logiciel nécéssite que les " macros " soient activées.
B13: Les " macros " permettent à partir d'un bouton (apparition de la petite main),
B14: l'exécution d'une application donnée.
B16: Pour vérifier si elles sont bien activées,
B17: appuyez sur le bouton ci-contre :
B19: Cette page doit apparaître :
B22: Appuyez alors dans cette page
B23: sur ce bouton pour revenir
B24: à l'INTRODUCTION :
B26: Si la page n'apparait pas, cela implique que les " macros " ne sont pas activées.
B27: Appuyez sur " F1 " de votre clavier pour accéder à la rubrique " AIDE "
B28: Notez : MACROS dans le moteur de recherche
B29: Selectionnez : Activer ou désactiver les Macros
B30: Suivez les recommandations pour les activer
B32: 2) PARAMETRAGE DU LOGICIEL
B34: Pour votre 1ère utilisation de ce logiciel, vous devez
B35: le paramatrer en cliquant sur ce bouton :
B37: 3) COMMENTAIRES DIVERS …
B39: N'hésitez pas à nous faire parvenir vos commentaires sur ce Logiciel à l'adresse ci-jointe : sudsante@ch-stmalo.fr

Sheet PARAMETRAGE
B2: PARAMETRAGE
B4: Première utilisation :
B6: 1) Téléchargez la dernière version mise à jour pour les grilles salariales sur notre site.
B7: http://www.sudsantesociaux35.org
B9: 2) Personnalisez votre Logiciel en renseignant:
B11: * Nom de l'Etablissement.
B12: * Nom des représentants SUD Santé aux CAP.
B13: * Renseignez "Locale" ou "Départementale"
B14: * Renseignez "vos numéros de téléphone".
B15: * Renseignez "votre département".
B16: * Renseignez "votre adresse mél" et celle de "votre site départemental".
B17: * Renseignez "l'année" et "la date de la CAP".

Sheet TEST MACROS
A1: Les " macros " sont activées
A3: Pour retourner à l'introduction, appuyez sur le bouton ci-dessous :

Sheet ACCUEIL

Sheet ETABLISSEMENT
B8: Centre Hospitalier de Saint Malo

Sheet CAPL ou CAPD

Sheet VALEUR du POINT
E3: 4.686
E11: 2019-01-01

Sheet TELEPHONE
E3: 2886
E10: 299212886

Sheet DEPARTEMENT
E4: 35

Sheet MEL
E4: sudsante@ch-stmalo.fr

Sheet SITE DEPART

Sheet HTTP DEPART
B13: http://www.sudsantesociaux35.org

Sheet REPRESENTANT
B8: Madame Françoise LAUTROU et Madame PERROT Anne

Sheet CAP
E3: 2019
E11: 2019-06-14

Sheet CAP 5

Sheet CAT B MT
B2: Selectionnez le Grade concerné par l'avancement d'échelon

Sheet CAT B EXTINCTION
B2: Selectionnez le Grade concerné par l'avancement d'échelon

Sheet END

Sheet RECAPITULATIF
B2: =ETABLISSEMENT!B8 -> Centre Hospitalier de Saint Malo
B4: Nom du de la ou des Représentant-e-s
B5: =REPRESENTANT!B8 -> Madame Françoise LAUTROU et Madame PERROT Anne
B7: CAP | D7: Locale
B9: Année | D9: =CAP!E3 -> 2019
B11: Date de la CAP | D11: =CAP!E11 -> 2019-06-14
B13: Valeur du Point | D13: ='VALEUR du POINT'!$E$3 -> 4.686
B15: Date de la valeur du Point | D15: ='VALEUR du POINT'!E11 -> 2019-01-01
B17: Poste | D17: =TELEPHONE!$E$3 -> 2886
B19: Téléphone | D19: =TELEPHONE!$E$10 -> 299212886
B21: Sud Santé Sociaux | D21: =DEPARTEMENT!E4 -> 35
B23: Mél | C23: =MEL!E4 -> sudsante@ch-stmalo.fr
B25: Site Départemental Sud | D25: ='HTTP DEPART'!B13 -> http://www.sudsantesociaux35.org

Sheet GRILLE Cat B CN
B2: Catégorie B Classe Normale Préparateur en pharmacie Hospitalière, Technicien de laboratoire médical, Diététicien
B7: Echelon | C7: Durée (en mois) | D7: Indice Majoré
B9: 1 | C9: 24 | D9: 356
B11: 2 | C11: 36 | D11: 371
B13: 3 | C13: 36 | D13: 389
B15: 4 | C15: 48 | D15: 409
B17: 5 | C17: 48 | D17: 429
B19: 6 | C19: 48 | D19: 462
B21: 7 | C21: 48 | D21: 495
B23: 8 | C23: 48 | D23: 534

Sheet IMP GRILLE Cat B CN
B2: 1) Imprimez autant de feuilles que d'agents concernés.
B4: 2) Pliez en 3 au niveau du repère, deux petits traits noirs.
B6: 3) Inserrez ce courrier dans une enveloppe 110 X 220 à fenêtre.

Sheet Cat B CN Echelon 2
G2: Commission Administrative
G3: Paritaire | M3: =RECAPITULATIF!D7 -> Locale
M9: Mme, Mr :
M11: Grade :
M13: Service :
A16: Votre ou vos représentant-e-s du personnel
A18: =RECAPITULATIF!B5 -> Madame Françoise LAUTROU et Madame PERROT Anne
A20: SUD Santé Sociaux | E20: =RECAPITULATIF!D21 -> 35 | F20: du:
A22: =RECAPITULATIF!B2 -> Centre Hospitalier de Saint Malo
A24: siégeant auprès de la CAP | F24: =RECAPITULATIF!D7 -> Locale | J24: du : | K24: =RECAPITULATIF!D11 -> 2019-06-14 | N24: vous informe de votre :
F27: AVANCEMENT D’ECHELON
A33: Vous passez à l’échelon : | F33: ='GRILLE Cat B CN'!B11 -> 2 | H33: Indice Majoré : | L33: ='GRILLE Cat B CN'!D11 -> 371
A36: Date d'effet : | F36: / | H36: / | I36: =RECAPITULATIF!D9 -> 2019 | R36: ='GRILLE Cat B CN'!B2 -> Catégorie B Classe Normale Préparateur en pharmacie Hospitalière, Technicien de laboratoire médical, Diététicien
A40: Ce qui représente un gain mensuel de : | I40: ='GRILLE Cat B CN'!D11-'GRILLE Cat B CN'!D9 -> 15 | K40: points d'indice.
R41: ='GRILLE Cat B CN'!B7 -> Echelon | S41: ='GRILLE Cat B CN'!C7 -> Durée (en mois) | T41: ='GRILLE Cat B CN'!D7 -> Indice Majoré
A43: Pour information, la valeur brute du point d'indice | R43: ='GRILLE Cat B CN'!B9 -> 1 | S43: ='GRILLE Cat B CN'!C9 -> 24 | T43: ='GRILLE Cat B CN'!D9 -> 356
R45: ='GRILLE Cat B CN'!B11 -> 2 | S45: ='GRILLE Cat B CN'!C11 -> 36 | T45: ='GRILLE Cat B CN'!D11 -> 371
A46: est de | C46: =RECAPITULATIF!D13 -> 4.686 | E46: au | F46: =RECAPITULATIF!D15 -> 2019-01-01
R47: ='GRILLE Cat B CN'!B13 -> 3 | S47: ='GRILLE Cat B CN'!C13 -> 36 | T47: ='GRILLE Cat B CN'!D13 -> 389
A49: Soit un gain net mensuel de : | G49: =I40*C46*0.8315 -> 58.446135 | R49: ='GRILLE Cat B CN'!B15 -> 4 | S49: ='GRILLE Cat B CN'!C15 -> 48 | T49: ='GRILLE Cat B CN'!D15 -> 409
R51: ='GRILLE Cat B CN'!B17 -> 5 | S51: ='GRILLE Cat B CN'!C17 -> 48 | T51: ='GRILLE Cat B CN'!D17 -> 429
R53: ='GRILLE Cat B CN'!B19 -> 6 | S53: ='GRILLE Cat B CN'!C19 -> 48 | T53: ='GRILLE Cat B CN'!D19 -> 462
A54: Vos représentant-e-s SUD Santé Sociaux | I54: =RECAPITULATIF!D21 -> 35 | K54: sont à votre disposition
A55: pour tous renseignements complémentaires au poste : | M55: =RECAPITULATIF!D17 -> 2886 | R55: ='GRILLE Cat B CN'!B21 -> 7 | S55: ='GRILLE Cat B CN'!C21 -> 48 | T55: ='GRILLE Cat B CN'!D21 -> 495
R57: ='GRILLE Cat B CN'!B23 -> 8 | S57: ='GRILLE Cat B CN'!C23 -> 48 | T57: ='GRILLE Cat B CN'!D23 -> 534
R59: ='GRILLE Cat B CN'!B25 -> 0 | S59: ='GRILLE Cat B CN'!C25 -> 0 | T59: ='GRILLE Cat B CN'!D25 -> 0
A60: Recevez toutes nos salutations.
R61: ='GRILLE Cat B CN'!B27 -> 0 | S61: ='GRILLE Cat B CN'!C27 -> 0 | T61: ='GRILLE Cat B CN'!D27 -> 0
A63: =RECAPITULATIF!B5 -> Madame Françoise LAUTROU et Madame PERROT Anne
A65: SUD Santé Sociaux | E65: =RECAPITULATIF!D21 -> 35
A70: Tél : | B70: =RECAPITULATIF!D19 -> 299212886
A71: Mél : | C71: =RECAPITULATIF!C23 -> sudsante@ch-stmalo.fr
A72: =RECAPITULATIF!B25 -> Site Départemental Sud | F72: =RECAPITULATIF!D25 -> http://www.sudsantesociaux35.org

Sheet Cat B CN Echelon 3
G2: Commission Administrative
G3: Paritaire | M3: =RECAPITULATIF!D7 -> Locale
M9: Mme, Mr :
M11: Grade :
M13: Service :
A16: Votre ou vos représentant-e-s du personnel
A18: =RECAPITULATIF!B5 -> Madame Françoise LAUTROU et Madame PERROT Anne
A20: SUD Santé Sociaux | E20: =RECAPITULATIF!D21 -> 35 | F20: du:
A22: =RECAPITULATIF!B2 -> Centre Hospitalier de Saint Malo
A24: siégeant auprès de la CAP | F24: =RECAPITULATIF!D7 -> Locale | J24: du : | K24: =RECAPITULATIF!D11 -> 2019-06-14 | N24: vous informe de votre :
F27: AVANCEMENT D’ECHELON
A33: Vous passez à l’échelon : | F33: ='GRILLE Cat B CN'!B13 -> 3 | H33: Indice Majoré : | L33: ='GRILLE Cat B CN'!D13 -> 389
A36: Date d'effet : | F36: / | H36: / | I36: =RECAPITULATIF!D9 -> 2019 | R36: ='GRILLE Cat B CN'!B2 -> Catégorie B Classe Normale Préparateur en pharmacie Hospitalière, Technicien de laboratoire médical, Diététicien
A40: Ce qui représente un gain mensuel de : | I40: ='GRILLE Cat B CN'!D13-'GRILLE Cat B CN'!D11 -> 18 | K40: points d'indice.
R41: ='GRILLE Cat B CN'!B7 -> Echelon | S41: ='GRILLE Cat B CN'!C7 -> Durée (en mois) | T41: ='GRILLE Cat B CN'!D7 -> Indice Majoré
A43: Pour information, la valeur brute du point d'indice | R43: ='GRILLE Cat B CN'!B9 -> 1 | S43: ='GRILLE Cat B CN'!C9 -> 24 | T43: ='GRILLE Cat B CN'!D9 -> 356
R45: ='GRILLE Cat B CN'!B11 -> 2 | S45: ='GRILLE Cat B CN'!C11 -> 36 | T45: ='GRILLE Cat B CN'!D11 -> 371
A46: est de | C46: =RECAPITULATIF!D13 -> 4.686 | E46: au | F46: =RECAPITULATIF!D15 -> 2019-01-01
R47: ='GRILLE Cat B CN'!B13 -> 3 | S47: ='GRILLE Cat B CN'!C13 -> 36 | T47: ='GRILLE Cat B CN'!D13 -> 389
A49: Soit un gain net mensuel de : | G49: =I40*C46*0.8315 -> 70.135362 | R49: ='GRILLE Cat B CN'!B15 -> 4 | S49: ='GRILLE Cat B CN'!C15 -> 48 | T49: ='GRILLE Cat B CN'!D15 -> 409
R51: ='GRILLE Cat B CN'!B17 -> 5 | S51: ='GRILLE Cat B CN'!C17 -> 48 | T51: ='GRILLE Cat B CN'!D17 -> 429
R53: ='GRILLE Cat B CN'!B19 -> 6 | S53: ='GRILLE Cat B CN'!C19 -> 48 | T53: ='GRILLE Cat B CN'!D19 -> 462
A54: Vos représentant-e-s SUD Santé Sociaux | I54: =RECAPITULATIF!D21 -> 35 | K54: sont à votre disposition
A55: pour tous renseignements complémentaires au poste : | M55: =RECAPITULATIF!D17 -> 2886 | R55: ='GRILLE Cat B CN'!B21 -> 7 | S55: ='GRILLE Cat B CN'!C21 -> 48 | T55: ='GRILLE Cat B CN'!D21 -> 495
R57: ='GRILLE Cat B CN'!B23 -> 8 | S57: ='GRILLE Cat B CN'!C23 -> 48 | T57: ='GRILLE Cat B CN'!D23 -> 534
R59: ='GRILLE Cat B CN'!B25 -> 0 | S59: ='GRILLE Cat B CN'!C25 -> 0 | T59: ='GRILLE Cat B CN'!D25 -> 0
A60: Recevez toutes nos salutations.
R61: ='GRILLE Cat B CN'!B27 -> 0 | S61: ='GRILLE Cat B CN'!C27 -> 0 | T61: ='GRILLE Cat B CN'!D27 -> 0
A63: =RECAPITULATIF!B5 -> Madame Françoise LAUTROU et Madame PERROT Anne
A65: SUD Santé Sociaux | E65: =RECAPITULATIF!D21 -> 35
A70: Tél : | B70: =RECAPITULATIF!D19 -> 299212886
A71: Mél : | C71: =RECAPITULATIF!C23 -> sudsante@ch-stmalo.fr
A72: =RECAPITULATIF!B25 -> Site Départemental Sud | F72: =RECAPITULATIF!D25 -> http://www.sudsantesociaux35.org

Sheet Cat B CN Echelon 4
G2: Commission Administrative
G3: Paritaire | M3: =RECAPITULATIF!D7 -> Locale
M9: Mme, Mr :
M11: Grade :
M13: Service :
A16: Votre ou vos représentant-e-s du personnel
A18: =RECAPITULATIF!B5 -> Madame Françoise LAUTROU et Madame PERROT Anne
A20: SUD Santé Sociaux | E20: =RECAPITULATIF!D21 -> 35 | F20: du:
A22: =RECAPITULATIF!B2 -> Centre Hospitalier de Saint Malo
A24: siégeant auprès de la CAP | F24: =RECAPITULATIF!D7 -> Locale | J24: du : | K24: =RECAPITULATIF!D11 -> 2019-06-14 | N24: vous informe de votre :
F27: AVANCEMENT D’ECHELON
A33: Vous passez à l’échelon : | F33: ='GRILLE Cat B CN'!B15 -> 4 | H33: Indice Majoré : | L33: ='GRILLE Cat B CN'!D15 -> 409
A36: Date d'effet : | F36: / | H36: / | I36: =RECAPITULATIF!D9 -> 2019 | R36: ='GRILLE Cat B CN'!B2 -> Catégorie B Classe Normale Préparateur en pharmacie Hospitalière, Technicien de laboratoire médical, Diététicien
A40: Ce qui représente un gain mensuel de : | I40: ='GRILLE Cat B CN'!D15-'GRILLE Cat B CN'!D13 -> 20 | K40: points d'indice.
R41: ='GRILLE Cat B CN'!B7 -> Echelon | S41: ='GRILLE Cat B CN'!C7 -> Durée (en mois) | T41: ='GRILLE Cat B CN'!D7 -> Indice Majoré
A43: Pour information, la valeur brute du point d'indice | R43: ='GRILLE Cat B CN'!B9 -> 1 | S43: ='GRILLE Cat B CN'!C9 -> 24 | T43: ='GRILLE Cat B CN'!D9 -> 356
R45: ='GRILLE Cat B CN'!B11 -> 2 | S45: ='GRILLE Cat B CN'!C11 -> 36 | T45: ='GRILLE Cat B CN'!D11 -> 371
A46: est de | C46: =RECAPITULATIF!D13 -> 4.686 | E46: au | F46: =RECAPITULATIF!D15 -> 2019-01-01
R47: ='GRILLE Cat B CN'!B13 -> 3 | S47: ='GRILLE Cat B CN'!C13 -> 36 | T47: ='GRILLE Cat B CN'!D13 -> 389
A49: Soit un gain net mensuel de : | G49: =I40*C46*0.8315 -> 77.92818 | R49: ='GRILLE Cat B CN'!B15 -> 4 | S49: ='GRILLE Cat B CN'!C15 -> 48 | T49: ='GRILLE Cat B CN'!D15 -> 409
R51: ='GRILLE Cat B CN'!B17 -> 5 | S51: ='GRILLE Cat B CN'!C17 -> 48 | T51: ='GRILLE Cat B CN'!D17 -> 429
R53: ='GRILLE Cat B CN'!B19 -> 6 | S53: ='GRILLE Cat B CN'!C19 -> 48 | T53: ='GRILLE Cat B CN'!D19 -> 462
A54: Vos représentant-e-s SUD Santé Sociaux | I54: =RECAPITULATIF!D21 -> 35 | K54: sont à votre disposition
A55: pour tous renseignements complémentaires au poste : | M55: =RECAPITULATIF!D17 -> 2886 | R55: ='GRILLE Cat B CN'!B21 -> 7 | S55: ='GRILLE Cat B CN'!C21 -> 48 | T55: ='GRILLE Cat B CN'!D21 -> 495
R57: ='GRILLE Cat B CN'!B23 -> 8 | S57: ='GRILLE Cat B CN'!C23 -> 48 | T57: ='GRILLE Cat B CN'!D23 -> 534
R59: ='GRILLE Cat B CN'!B25 -> 0 | S59: ='GRILLE Cat B CN'!C25 -> 0 | T59: ='GRILLE Cat B CN'!D25 -> 0
A60: Recevez toutes nos salutations.
R61: ='GRILLE Cat B CN'!B27 -> 0 | S61: ='GRILLE Cat B CN'!C27 -> 0 | T61: ='GRILLE Cat B CN'!D27 -> 0
A63: =RECAPITULATIF!B5 -> Madame Françoise LAUTROU et Madame PERROT Anne
A65: SUD Santé Sociaux | E65: =RECAPITULATIF!D21 -> 35
A70: Tél : | B70: =RECAPITULATIF!D19 -> 299212886
A71: Mél : | C71: =RECAPITULATIF!C23 -> sudsante@ch-stmalo.fr
A72: =RECAPITULATIF!B25 -> Site Départemental Sud | F72: =RECAPITULATIF!D25 -> http://www.sudsantesociaux35.org

Sheet Cat B CN Echelon 5
G2: Commission Administrative
G3: Paritaire | M3: =RECAPITULATIF!D7 -> Locale
M9: Mme, Mr :
M11: Grade :
M13: Service :
A16: Votre ou vos représentant-e-s du personnel
A18: =RECAPITULATIF!B5 -> Madame Françoise LAUTROU et Madame PERROT Anne
A20: SUD Santé Sociaux | E20: =RECAPITULATIF!D21 -> 35 | F20: du:
A22: =RECAPITULATIF!B2 -> Centre Hospitalier de Saint Malo
A24: siégeant auprès de la CAP | F24: =RECAPITULATIF!D7 -> Locale | J24: du : | K24: =RECAPITULATIF!D11 -> 2019-06-14 | N24: vous informe de votre :
F27: AVANCEMENT D’ECHELON
A33: Vous passez à l’échelon : | F33: ='GRILLE CAT B CS'!B17 -> 5 | H33: Indice Majoré : | L33: ='GRILLE Cat B CN'!D17 -> 429
A36: Date d'effet : | F36: / | H36: / | I36: =RECAPITULATIF!D9 -> 2019 | R36: ='GRILLE Cat B CN'!B2 -> Catégorie B Classe Normale Préparateur en pharmacie Hospitalière, Technicien de laboratoire médical, Diététicien
A40: Ce qui représente un gain mensuel de : | I40: ='GRILLE CAT B CS'!D17-'GRILLE CAT B CS'!D15 -> 24 | K40: points d'indice.
R41: ='GRILLE CAT B CS'!B7 -> Echelon | S41: ='GRILLE CAT B CS'!C7 -> Durée (en mois) | T41: ='GRILLE CAT B CS'!D7 -> Indice Majoré
A43: Pour information, la valeur brute du point d'indice | R43: ='GRILLE Cat B CN'!B9 -> 1 | S43: ='GRILLE Cat B CN'!C9 -> 24 | T43: ='GRILLE Cat B CN'!D9 -> 356
R45: ='GRILLE Cat B CN'!B11 -> 2 | S45: ='GRILLE Cat B CN'!C11 -> 36 | T45: ='GRILLE Cat B CN'!D11 -> 371
A46: est de | C46: =RECAPITULATIF!D13 -> 4.686 | E46: au | F46: =RECAPITULATIF!D15 -> 2019-01-01
R47: ='GRILLE Cat B CN'!B13 -> 3 | S47: ='GRILLE Cat B CN'!C13 -> 36 | T47: ='GRILLE Cat B CN'!D13 -> 389
A49: Soit un gain net mensuel de : | G49: =I40*C46*0.8315 -> 93.513816 | R49: ='GRILLE Cat B CN'!B15 -> 4 | S49: ='GRILLE Cat B CN'!C15 -> 48 | T49: ='GRILLE Cat B CN'!D15 -> 409
R51: ='GRILLE Cat B CN'!B17 -> 5 | S51: ='GRILLE Cat B CN'!C17 -> 48 | T51: ='GRILLE Cat B CN'!D17 -> 429
R53: ='GRILLE Cat B CN'!B19 -> 6 | S53: ='GRILLE Cat B CN'!C19 -> 48 | T53: ='GRILLE Cat B CN'!D19 -> 462
A54: Vos représentant-e-s SUD Santé Sociaux | I54: =RECAPITULATIF!D21 -> 35 | K54: sont à votre disposition
A55: pour tous renseignements complémentaires au poste : | M55: =RECAPITULATIF!D17 -> 2886 | R55: ='GRILLE Cat B CN'!B21 -> 7 | S55: ='GRILLE Cat B CN'!C21 -> 48 | T55: ='GRILLE Cat B CN'!D21 -> 495
R57: ='GRILLE Cat B CN'!B23 -> 8 | S57: ='GRILLE Cat B CN'!C23 -> 48 | T57: ='GRILLE Cat B CN'!D23 -> 534
R59: ='GRILLE Cat B CN'!B25 -> 0 | S59: ='GRILLE Cat B CN'!C25 -> 0 | T59: ='GRILLE Cat B CN'!D25 -> 0
A60: Recevez toutes nos salutations.
R61: ='GRILLE Cat B CN'!B27 -> 0 | S61: ='GRILLE Cat B CN'!C27 -> 0 | T61: ='GRILLE Cat B CN'!D27 -> 0
A63: =RECAPITULATIF!B5 -> Madame Françoise LAUTROU et Madame PERROT Anne
A65: SUD Santé Sociaux | E65: =RECAPITULATIF!D21 -> 35
A70: Tél : | B70: =RECAPITULATIF!D19 -> 299212886
A71: Mél : | C71: =RECAPITULATIF!C23 -> sudsante@ch-stmalo.fr
A72: =RECAPITULATIF!B25 -> Site Départemental Sud | F72: =RECAPITULATIF!D25 -> http://www.sudsantesociaux35.org

Sheet Cat B CN Echelon 6
G2: Commission Administrative
G3: Paritaire | M3: =RECAPITULATIF!D7 -> Locale
M9: Mme, Mr :
M11: Grade :
M13: Service :
A16: Votre ou vos représentant-e-s du personnel
A18: =RECAPITULATIF!B5 -> Madame Françoise LAUTROU et Madame PERROT Anne
A20: SUD Santé Sociaux | E20: =RECAPITULATIF!D21 -> 35 | F20: du:
A22: =RECAPITULATIF!B2 -> Centre Hospitalier de Saint Malo
A24: siégeant auprès de la CAP | F24: =RECAPITULATIF!D7 -> Locale | J24: du : | K24: =RECAPITULATIF!D11 -> 2019-06-14 | N24: vous informe de votre :
F27: AVANCEMENT D’ECHELON
A33: Vous passez à l’échelon : | F33: ='GRILLE Cat B CN'!B19 -> 6 | H33: Indice Majoré : | L33: ='GRILLE Cat B CN'!D19 -> 462
A36: Date d'effet : | F36: / | H36: / | I36: =RECAPITULATIF!D9 -> 2019 | R36: ='GRILLE Cat B CN'!B2 -> Catégorie B Classe Normale Préparateur en pharmacie Hospitalière, Technicien de laboratoire médical, Diététicien
A40: Ce qui représente un gain mensuel de : | I40: ='GRILLE Cat B CN'!D19-'GRILLE Cat B CN'!D17 -> 33 | K40: points d'indice.
R41: ='GRILLE Cat B CN'!B7 -> Echelon | S41: ='GRILLE Cat B CN'!C7 -> Durée (en mois) | T41: ='GRILLE Cat B CN'!D7 -> Indice Majoré
A43: Pour information, la valeur brute du point d'indice | R43: ='GRILLE Cat B CN'!B9 -> 1 | S43: ='GRILLE Cat B CN'!C9 -> 24 | T43: ='GRILLE Cat B CN'!D9 -> 356
R45: ='GRILLE Cat B CN'!B11 -> 2 | S45: ='GRILLE Cat B CN'!C11 -> 36 | T45: ='GRILLE Cat B CN'!D11 -> 371
A46: est de | C46: =RECAPITULATIF!D13 -> 4.686 | E46: au | F46: =RECAPITULATIF!D15 -> 2019-01-01
R47: ='GRILLE Cat B CN'!B13 -> 3 | S47: ='GRILLE Cat B CN'!C13 -> 36 | T47: ='GRILLE Cat B CN'!D13 -> 389
A49: Soit un gain net mensuel de : | G49: =I40*C46*0.8315 -> 128.581497 | R49: ='GRILLE Cat B CN'!B15 -> 4 | S49: ='GRILLE Cat B CN'!C15 -> 48 | T49: ='GRILLE Cat B CN'!D15 -> 409
R51: ='GRILLE Cat B CN'!B17 -> 5 | S51: ='GRILLE Cat B CN'!C17 -> 48 | T51: ='GRILLE Cat B CN'!D17 -> 429
R53: ='GRILLE Cat B CN'!B19 -> 6 | S53: ='GRILLE Cat B CN'!C19 -> 48 | T53: ='GRILLE Cat B CN'!D19 -> 462
A54: Vos représentant-e-s SUD Santé Sociaux | I54: =RECAPITULATIF!D21 -> 35 | K54: sont à votre disposition
A55: pour tous renseignements complémentaires au poste : | M55: =RECAPITULATIF!D17 -> 2886 | R55: ='GRILLE Cat B CN'!B21 -> 7 | S55: ='GRILLE Cat B CN'!C21 -> 48 | T55: ='GRILLE Cat B CN'!D21 -> 495
R57: ='GRILLE Cat B CN'!B23 -> 8 | S57: ='GRILLE Cat B CN'!C23 -> 48 | T57: ='GRILLE Cat B CN'!D23 -> 534
R59: ='GRILLE Cat B CN'!B25 -> 0 | S59: ='GRILLE Cat B CN'!C25 -> 0 | T59: ='GRILLE Cat B CN'!D25 -> 0
A60: Recevez toutes nos salutations.
R61: ='GRILLE Cat B CN'!B27 -> 0 | S61: ='GRILLE Cat B CN'!C27 -> 0 | T61: ='GRILLE Cat B CN'!D27 -> 0
A63: =RECAPITULATIF!B5 -> Madame Françoise LAUTROU et Madame PERROT Anne
A65: SUD Santé Sociaux | E65: =RECAPITULATIF!D21 -> 35
A70: Tél : | B70: =RECAPITULATIF!D19 -> 299212886
A71: Mél : | C71: =RECAPITULATIF!C23 -> sudsante@ch-stmalo.fr
A72: =RECAPITULATIF!B25 -> Site Départemental Sud | F72: =RECAPITULATIF!D25 -> http://www.sudsantesociaux35.org

Sheet Cat B CN Echelon 7
G2: Commission Administrative
G3: Paritaire | M3: =RECAPITULATIF!D7 -> Locale
M9: Mme, Mr :
M11: Grade :
M13: Service :
A16: Votre ou vos représentant-e-s du personnel
A18: =RECAPITULATIF!B5 -> Madame Françoise LAUTROU et Madame PERROT Anne
A20: SUD Santé Sociaux | E20: =RECAPITULATIF!D21 -> 35 | F20: du:
A22: =RECAPITULATIF!B2 -> Centre Hospitalier de Saint Malo
A24: siégeant auprès de la CAP | F24: =RECAPITULATIF!D7 -> Locale | J24: du : | K24: =RECAPITULATIF!D11 -> 2019-06-14 | N24: vous informe de votre :
F27: AVANCEMENT D’ECHELON
A33: Vous passez à l’échelon : | F33: ='GRILLE Cat B CN'!B21 -> 7 | H33: Indice Majoré : | L33: ='GRILLE Cat B CN'!D21 -> 495
A36: Date d'effet : | F36: / | H36: / | I36: =RECAPITULATIF!D9 -> 2019 | R36: ='GRILLE Cat B CN'!B2 -> Catégorie B Classe Normale Préparateur en pharmacie Hospitalière, Technicien de laboratoire médical, Diététicien
A40: Ce qui représente un gain mensuel de : | I40: ='GRILLE Cat B CN'!D21-'GRILLE Cat B CN'!D19 -> 33 | K40: points d'indice.
R41: ='GRILLE Cat B CN'!B7 -> Echelon | S41: ='GRILLE Cat B CN'!C7 -> Durée (en mois) | T41: ='GRILLE Cat B CN'!D7 -> Indice Majoré
A43: Pour information, la valeur brute du point d'indice | R43: ='GRILLE Cat B CN'!B9 -> 1 | S43: ='GRILLE Cat B CN'!C9 -> 24 | T43: ='GRILLE Cat B CN'!D9 -> 356
R45: ='GRILLE Cat B CN'!B11 -> 2 | S45: ='GRILLE Cat B CN'!C11 -> 36 | T45: ='GRILLE Cat B CN'!D11 -> 371
A46: est de | C46: =RECAPITULATIF!D13 -> 4.686 | E46: au | F46: =RECAPITULATIF!D15 -> 2019-01-01
R47: ='GRILLE Cat B CN'!B13 -> 3 | S47: ='GRILLE Cat B CN'!C13 -> 36 | T47: ='GRILLE Cat B CN'!D13 -> 389
A49: Soit un gain net mensuel de : | G49: =I40*C46*0.8315 -> 128.581497 | R49: ='GRILLE Cat B CN'!B15 -> 4 | S49: ='GRILLE Cat B CN'!C15 -> 48 | T49: ='GRILLE Cat B CN'!D15 -> 409
R51: ='GRILLE Cat B CN'!B17 -> 5 | S51: ='GRILLE Cat B CN'!C17 -> 48 | T51: ='GRILLE Cat B CN'!D17 -> 429
R53: ='GRILLE Cat B CN'!B19 -> 6 | S53: ='GRILLE Cat B CN'!C19 -> 48 | T53: ='GRILLE Cat B CN'!D19 -> 462
A54: Vos représentant-e-s SUD Santé Sociaux | I54: =RECAPITULATIF!D21 -> 35 | K54: sont à votre disposition
A55: pour tous renseignements complémentaires au poste : | M55: =RECAPITULATIF!D17 -> 2886 | R55: ='GRILLE Cat B CN'!B21 -> 7 | S55: ='GRILLE Cat B CN'!C21 -> 48 | T55: ='GRILLE Cat B CN'!D21 -> 495
R57: ='GRILLE Cat B CN'!B23 -> 8 | S57: ='GRILLE Cat B CN'!C23 -> 48 | T57: ='GRILLE Cat B CN'!D23 -> 534
R59: ='GRILLE Cat B CN'!B25 -> 0 | S59: ='GRILLE Cat B CN'!C25 -> 0 | T59: ='GRILLE Cat B CN'!D25 -> 0
A60: Recevez toutes nos salutations.
R61: ='GRILLE Cat B CN'!B27 -> 0 | S61: ='GRILLE Cat B CN'!C27 -> 0 | T61: ='GRILLE Cat B CN'!D27 -> 0
A63: =RECAPITULATIF!B5 -> Madame Françoise LAUTROU et Madame PERROT Anne
A65: SUD Santé Sociaux | E65: =RECAPITULATIF!D21 -> 35
A70: Tél : | B70: =RECAPITULATIF!D19 -> 299212886
A71: Mél : | C71: =RECAPITULATIF!C23 -> sudsante@ch-stmalo.fr
A72: =RECAPITULATIF!B25 -> Site Départemental Sud | F72: =RECAPITULATIF!D25 -> http://www.sudsantesociaux35.org

Sheet Cat B CN Echelon 8
G2: Commission Administrative
G3: Paritaire | M3: =RECAPITULATIF!D7 -> Locale
M9: Mme, Mr :
M11: Grade :
M13: Service :
A16: Votre ou vos représentant-e-s du personnel
A18: =RECAPITULATIF!B5 -> Madame Françoise LAUTROU et Madame PERROT Anne
A20: SUD Santé Sociaux | E20: =RECAPITULATIF!D21 -> 35 | F20: du:
A22: =RECAPITULATIF!B2 -> Centre Hospitalier de Saint Malo
A24: siégeant auprès de la CAP | F24: =RECAPITULATIF!D7 -> Locale | J24: du : | K24: =RECAPITULATIF!D11 -> 2019-06-14 | N24: vous informe de votre :
F27: AVANCEMENT D’ECHELON
A33: Vous passez à l’échelon : | F33: ='GRILLE Cat B CN'!B23 -> 8 | H33: Indice Majoré : | L33: ='GRILLE Cat B CN'!D23 -> 534
A36: Date d'effet : | F36: / | H36: / | I36: =RECAPITULATIF!D9 -> 2019 | R36: ='GRILLE Cat B CN'!B2 -> Catégorie B Classe Normale Préparateur en pharmacie Hospitalière, Technicien de laboratoire médical, Diététicien
A40: Ce qui représente un gain mensuel de : | I40: ='GRILLE Cat B CN'!D23-'GRILLE Cat B CN'!D21 -> 39 | K40: points d'indice.
R41: ='GRILLE Cat B CN'!B7 -> Echelon | S41: ='GRILLE Cat B CN'!C7 -> Durée (en mois) | T41: ='GRILLE Cat B CN'!D7 -> Indice Majoré
A43: Pour information, la valeur brute du point d'indice | R43: ='GRILLE Cat B CN'!B9 -> 1 | S43: ='GRILLE Cat B CN'!C9 -> 24 | T43: ='GRILLE Cat B CN'!D9 -> 356
R45: ='GRILLE Cat B CN'!B11 -> 2 | S45: ='GRILLE Cat B CN'!C11 -> 36 | T45: ='GRILLE Cat B CN'!D11 -> 371
A46: est de | C46: =RECAPITULATIF!D13 -> 4.686 | E46: au | F46: =RECAPITULATIF!D15 -> 2019-01-01
R47: ='GRILLE Cat B CN'!B13 -> 3 | S47: ='GRILLE Cat B CN'!C13 -> 36 | T47: ='GRILLE Cat B CN'!D13 -> 389
A49: Soit un gain net mensuel de : | G49: =I40*C46*0.8315 -> 151.959951 | R49: ='GRILLE Cat B CN'!B15 -> 4 | S49: ='GRILLE Cat B CN'!C15 -> 48 | T49: ='GRILLE Cat B CN'!D15 -> 409
R51: ='GRILLE Cat B CN'!B17 -> 5 | S51: ='GRILLE Cat B CN'!C17 -> 48 | T51: ='GRILLE Cat B CN'!D17 -> 429
R53: ='GRILLE Cat B CN'!B19 -> 6 | S53: ='GRILLE Cat B CN'!C19 -> 48 | T53: ='GRILLE Cat B CN'!D19 -> 462
A54: Vos représentant-e-s SUD Santé Sociaux | I54: =RECAPITULATIF!D21 -> 35 | K54: sont à votre disposition
A55: pour tous renseignements complémentaires au poste : | M55: =RECAPITULATIF!D17 -> 2886 | R55: ='GRILLE Cat B CN'!B21 -> 7 | S55: ='GRILLE Cat B CN'!C21 -> 48 | T55: ='GRILLE Cat B CN'!D21 -> 495
R57: ='GRILLE Cat B CN'!B23 -> 8 | S57: ='GRILLE Cat B CN'!C23 -> 48 | T57: ='GRILLE Cat B CN'!D23 -> 534
R59: ='GRILLE Cat B CN'!B25 -> 0 | S59: ='GRILLE Cat B CN'!C25 -> 0 | T59: ='GRILLE Cat B CN'!D25 -> 0
A60: Recevez toutes nos salutations.
R61: ='GRILLE Cat B CN'!B27 -> 0 | S61: ='GRILLE Cat B CN'!C27 -> 0 | T61: ='GRILLE Cat B CN'!D27 -> 0
A63: =RECAPITULATIF!B5 -> Madame Françoise LAUTROU et Madame PERROT Anne
A65: SUD Santé Sociaux | E65: =RECAPITULATIF!D21 -> 35
A70: Tél : | B70: =RECAPITULATIF!D19 -> 299212886
A71: Mél : | C71: =RECAPITULATIF!C23 -> sudsante@ch-stmalo.fr
A72: =RECAPITULATIF!B25 -> Site Départemental Sud | F72: =RECAPITULATIF!D25 -> http://www.sudsantesociaux35.org

Sheet GRILLE CAT B CS
B2: Catégorie B Classe Supérieure Préparateur en pharmacie Hospitalière, Technicien de laboratoire médical, Diététicien
B7: Echelon | C7: Durée (en mois) | D7: Indice Majoré
B9: 1 | C9: 12 | D9: 445
B11: 2 | C11: 24 | D11: 461
B13: 3 | C13: 36 | D13: 485
B15: 4 | C15: 36 | D15: 510
B17: 5 | C17: 48 | D17: 534
B19: 6 | C19: 48 | D19: 555
B21: 7 | C21: 48 | D21: 569
B23: 8 | D23: 587

Sheet IMP GRILLE CAT B CS
B2: 1) Imprimez autant de feuilles que d'agents concernés.
B4: 2) Pliez en 3 au niveau du repère, deux petits traits noirs.
B6: 3) Inserrez ce courrier dans une enveloppe 110 X 220 à fenêtre.

Sheet CAT B CS Echelon 2
G2: Commission Administrative
G3: Paritaire | M3: =RECAPITULATIF!D7 -> Locale
M9: Mme, Mr :
M11: Grade :
M13: Service :
A16: Votre ou vos représentant-e-s du personnel
A18: =RECAPITULATIF!B5 -> Madame Françoise LAUTROU et Madame PERROT Anne
A20: SUD Santé Sociaux | E20: =RECAPITULATIF!D21 -> 35 | F20: du:
A22: =RECAPITULATIF!B2 -> Centre Hospitalier de Saint Malo
A24: siégeant auprès de la CAP | F24: =RECAPITULATIF!D7 -> Locale | J24: du : | K24: =RECAPITULATIF!D11 -> 2019-06-14 | N24: vous informe de votre :
F27: AVANCEMENT D’ECHELON
A33: Vous passez à l’échelon : | F33: ='GRILLE CAT B CS'!B11 -> 2 | H33: Indice Majoré : | L33: ='GRILLE CAT B CS'!D11 -> 461
A36: Date d'effet : | F36: / | H36: / | I36: =RECAPITULATIF!D9 -> 2019 | R36: ='GRILLE CAT B CS'!B2 -> Catégorie B Classe Supérieure Préparateur en pharmacie Hospitalière, Technicien de laboratoire médical, Diététicien
A40: Ce qui représente un gain mensuel de : | I40: ='GRILLE CAT B CS'!D11-'GRILLE CAT B CS'!D9 -> 16 | K40: points d'indice.
R41: ='GRILLE CAT B CS'!B7 -> Echelon | S41: ='GRILLE CAT B CS'!C7 -> Durée (en mois) | T41: ='GRILLE CAT B CS'!D7 -> Indice Majoré
A43: Pour information, la valeur brute du point d'indice | R43: ='GRILLE CAT B CS'!B9 -> 1 | S43: ='GRILLE CAT B CS'!C9 -> 12 | T43: ='GRILLE CAT B CS'!D9 -> 445
R45: ='GRILLE CAT B CS'!B11 -> 2 | S45: ='GRILLE CAT B CS'!C11 -> 24 | T45: ='GRILLE CAT B CS'!D11 -> 461
A46: est de | C46: =RECAPITULATIF!D13 -> 4.686 | E46: au | F46: =RECAPITULATIF!D15 -> 2019-01-01
R47: ='GRILLE CAT B CS'!B13 -> 3 | S47: ='GRILLE CAT B CS'!C13 -> 36 | T47: ='GRILLE CAT B CS'!D13 -> 485
A49: Soit un gain net mensuel de : | G49: =I40*C46*0.8315 -> 62.342544 | R49: ='GRILLE CAT B CS'!B15 -> 4 | S49: ='GRILLE CAT B CS'!C15 -> 36 | T49: ='GRILLE CAT B CS'!D15 -> 510
R51: ='GRILLE CAT B CS'!B17 -> 5 | S51: ='GRILLE CAT B CS'!C17 -> 48 | T51: ='GRILLE CAT B CS'!D17 -> 534
R53: ='GRILLE CAT B CS'!B19 -> 6 | S53: ='GRILLE CAT B CS'!C19 -> 48 | T53: ='GRILLE CAT B CS'!D19 -> 555
A54: Vos représentant-e-s SUD Santé Sociaux | I54: =RECAPITULATIF!D21 -> 35 | K54: sont à votre disposition
A55: pour tous renseignements complémentaires au poste : | M55: =RECAPITULATIF!D17 -> 2886 | R55: ='GRILLE CAT B CS'!B21 -> 7 | S55: ='GRILLE CAT B CS'!C21 -> 48 | T55: ='GRILLE CAT B CS'!D21 -> 569
R57: ='GRILLE CAT B CS'!B23 -> 8 | S57: ='GRILLE CAT B CS'!C23 -> 0 | T57: ='GRILLE CAT B CS'!D23 -> 587
R59: ='GRILLE CAT B CS'!B25 -> 0 | S59: ='GRILLE CAT B CS'!C25 -> 0 | T59: ='GRILLE CAT B CS'!D25 -> 0
A60: Recevez toutes nos salutations.
R61: ='GRILLE CAT B CS'!B27 -> 0 | S61: ='GRILLE CAT B CS'!C27 -> 0 | T61: ='GRILLE CAT B CS'!D27 -> 0
A63: =RECAPITULATIF!B5 -> Madame Françoise LAUTROU et Madame PERROT Anne
A65: SUD Santé Sociaux | E65: =RECAPITULATIF!D21 -> 35
A70: Tél : | B70: =RECAPITULATIF!D19 -> 299212886
A71: Mél : | C71: =RECAPITULATIF!C23 -> sudsante@ch-stmalo.fr
A72: =RECAPITULATIF!B25 -> Site Départemental Sud | F72: =RECAPITULATIF!D25 -> http://www.sudsantesociaux35.org

Sheet CAT B CS Echelon 3
G2: Commission Administrative
G3: Paritaire | M3: =RECAPITULATIF!D7 -> Locale
M9: Mme, Mr :
M11: Grade :
M13: Service :
A16: Votre ou vos représentant-e-s du personnel
A18: =RECAPITULATIF!B5 -> Madame Françoise LAUTROU et Madame PERROT Anne
A20: SUD Santé Sociaux | E20: =RECAPITULATIF!D21 -> 35 | F20: du:
A22: =RECAPITULATIF!B2 -> Centre Hospitalier de Saint Malo
A24: siégeant auprès de la CAP | F24: =RECAPITULATIF!D7 -> Locale | J24: du : | K24: =RECAPITULATIF!D11 -> 2019-06-14 | N24: vous informe de votre :
F27: AVANCEMENT D’ECHELON
A33: Vous passez à l’échelon : | F33: ='GRILLE CAT B CS'!B13 -> 3 | H33: Indice Majoré : | L33: ='GRILLE CAT B CS'!D13 -> 485
A36: Date d'effet : | F36: / | H36: / | I36: =RECAPITULATIF!D9 -> 2019 | R36: ='GRILLE CAT B CS'!B2 -> Catégorie B Classe Supérieure Préparateur en pharmacie Hospitalière, Technicien de laboratoire médical, Diététicien
A40: Ce qui représente un gain mensuel de : | I40: ='GRILLE CAT B CS'!D13-'GRILLE CAT B CS'!D11 -> 24 | K40: points d'indice.
R41: ='GRILLE CAT B CS'!B7 -> Echelon | S41: ='GRILLE CAT B CS'!C7 -> Durée (en mois) | T41: ='GRILLE CAT B CS'!D7 -> Indice Majoré
A43: Pour information, la valeur brute du point d'indice | R43: ='GRILLE CAT B CS'!B9 -> 1 | S43: ='GRILLE CAT B CS'!C9 -> 12 | T43: ='GRILLE CAT B CS'!D9 -> 445
R45: ='GRILLE CAT B CS'!B11 -> 2 | S45: ='GRILLE CAT B CS'!C11 -> 24 | T45: ='GRILLE CAT B CS'!D11 -> 461
A46: est de | C46: =RECAPITULATIF!D13 -> 4.686 | E46: au | F46: =RECAPITULATIF!D15 -> 2019-01-01
R47: ='GRILLE CAT B CS'!B13 -> 3 | S47: ='GRILLE CAT B CS'!C13 -> 36 | T47: ='GRILLE CAT B CS'!D13 -> 485
A49: Soit un gain net mensuel de : | G49: =I40*C46*0.8315 -> 93.513816 | R49: ='GRILLE CAT B CS'!B15 -> 4 | S49: ='GRILLE CAT B CS'!C15 -> 36 | T49: ='GRILLE CAT B CS'!D15 -> 510
R51: ='GRILLE CAT B CS'!B17 -> 5 | S51: ='GRILLE CAT B CS'!C17 -> 48 | T51: ='GRILLE CAT B CS'!D17 -> 534
R53: ='GRILLE CAT B CS'!B19 -> 6 | S53: ='GRILLE CAT B CS'!C19 -> 48 | T53: ='GRILLE CAT B CS'!D19 -> 555
A54: Vos représentant-e-s SUD Santé Sociaux | I54: =RECAPITULATIF!D21 -> 35 | K54: sont à votre disposition
A55: pour tous renseignements complémentaires au poste : | M55: =RECAPITULATIF!D17 -> 2886 | R55: ='GRILLE CAT B CS'!B21 -> 7 | S55: ='GRILLE CAT B CS'!C21 -> 48 | T55: ='GRILLE CAT B CS'!D21 -> 569
R57: ='GRILLE CAT B CS'!B23 -> 8 | S57: ='GRILLE CAT B CS'!C23 -> 0 | T57: ='GRILLE CAT B CS'!D23 -> 587
R59: ='GRILLE CAT B CS'!B25 -> 0 | S59: ='GRILLE CAT B CS'!C25 -> 0 | T59: ='GRILLE CAT B CS'!D25 -> 0
A60: Recevez toutes nos salutations.
R61: ='GRILLE CAT B CS'!B27 -> 0 | S61: ='GRILLE CAT B CS'!C27 -> 0 | T61: ='GRILLE CAT B CS'!D27 -> 0
A63: =RECAPITULATIF!B5 -> Madame Françoise LAUTROU et Madame PERROT Anne
A65: SUD Santé Sociaux | E65: =RECAPITULATIF!D21 -> 35
A70: Tél : | B70: =RECAPITULATIF!D19 -> 299212886
A71: Mél : | C71: =RECAPITULATIF!C23 -> sudsante@ch-stmalo.fr
A72: =RECAPITULATIF!B25 -> Site Départemental Sud | F72: =RECAPITULATIF!D25 -> http://www.sudsantesociaux35.org

Sheet CAT B CS Echelon 4
G2: Commission Administrative
G3: Paritaire | M3: =RECAPITULATIF!D7 -> Locale
M9: Mme, Mr :
M11: Grade :
M13: Service :
A16: Votre ou vos représentant-e-s du personnel
A18: =RECAPITULATIF!B5 -> Madame Françoise LAUTROU et Madame PERROT Anne
A20: SUD Santé Sociaux | E20: =RECAPITULATIF!D21 -> 35 | F20: du:
A22: =RECAPITULATIF!B2 -> Centre Hospitalier de Saint Malo
A24: siégeant auprès de la CAP | F24: =RECAPITULATIF!D7 -> Locale | J24: du : | K24: =RECAPITULATIF!D11 -> 2019-06-14 | N24: vous informe de votre :
F27: AVANCEMENT D’ECHELON
A33: Vous passez à l’échelon : | F33: ='GRILLE CAT B CS'!B15 -> 4 | H33: Indice Majoré : | L33: ='GRILLE CAT B CS'!D15 -> 510
A36: Date d'effet : | F36: / | H36: / | I36: =RECAPITULATIF!D9 -> 2019 | R36: ='GRILLE CAT B CS'!B2 -> Catégorie B Classe Supérieure Préparateur en pharmacie Hospitalière, Technicien de laboratoire médical, Diététicien
A40: Ce qui représente un gain mensuel de : | I40: ='GRILLE CAT B CS'!D15-'GRILLE CAT B CS'!D13 -> 25 | K40: points d'indice.
R41: ='GRILLE CAT B CS'!B7 -> Echelon | S41: ='GRILLE CAT B CS'!C7 -> Durée (en mois) | T41: ='GRILLE CAT B CS'!D7 -> Indice Majoré
A43: Pour information, la valeur brute du point d'indice | R43: ='GRILLE CAT B CS'!B9 -> 1 | S43: ='GRILLE CAT B CS'!C9 -> 12 | T43: ='GRILLE CAT B CS'!D9 -> 445
R45: ='GRILLE CAT B CS'!B11 -> 2 | S45: ='GRILLE CAT B CS'!C11 -> 24 | T45: ='GRILLE CAT B CS'!D11 -> 461
A46: est de | C46: =RECAPITULATIF!D13 -> 4.686 | E46: au | F46: =RECAPITULATIF!D15 -> 2019-01-01
R47: ='GRILLE CAT B CS'!B13 -> 3 | S47: ='GRILLE CAT B CS'!C13 -> 36 | T47: ='GRILLE CAT B CS'!D13 -> 485
A49: Soit un gain net mensuel de : | G49: =I40*C46*0.8315 -> 97.410225 | R49: ='GRILLE CAT B CS'!B15 -> 4 | S49: ='GRILLE CAT B CS'!C15 -> 36 | T49: ='GRILLE CAT B CS'!D15 -> 510
R51: ='GRILLE CAT B CS'!B17 -> 5 | S51: ='GRILLE CAT B CS'!C17 -> 48 | T51: ='GRILLE CAT B CS'!D17 -> 534
R53: ='GRILLE CAT B CS'!B19 -> 6 | S53: ='GRILLE CAT B CS'!C19 -> 48 | T53: ='GRILLE CAT B CS'!D19 -> 555
A54: Vos représentant-e-s SUD Santé Sociaux | I54: =RECAPITULATIF!D21 -> 35 | K54: sont à votre disposition
A55: pour tous renseignements complémentaires au poste : | M55: =RECAPITULATIF!D17 -> 2886 | R55: ='GRILLE CAT B CS'!B21 -> 7 | S55: ='GRILLE CAT B CS'!C21 -> 48 | T55: ='GRILLE CAT B CS'!D21 -> 569
R57: ='GRILLE CAT B CS'!B23 -> 8 | S57: ='GRILLE CAT B CS'!C23 -> 0 | T57: ='GRILLE CAT B CS'!D23 -> 587
R59: ='GRILLE CAT B CS'!B25 -> 0 | S59: ='GRILLE CAT B CS'!C25 -> 0 | T59: ='GRILLE CAT B CS'!D25 -> 0
A60: Recevez toutes nos salutations.
R61: ='GRILLE CAT B CS'!B27 -> 0 | S61: ='GRILLE CAT B CS'!C27 -> 0 | T61: ='GRILLE CAT B CS'!D27 -> 0
A63: =RECAPITULATIF!B5 -> Madame Françoise LAUTROU et Madame PERROT Anne
A65: SUD Santé Sociaux | E65: =RECAPITULATIF!D21 -> 35
A70: Tél : | B70: =RECAPITULATIF!D19 -> 299212886
A71: Mél : | C71: =RECAPITULATIF!C23 -> sudsante@ch-stmalo.fr
A72: =RECAPITULATIF!B25 -> Site Départemental Sud | F72: =RECAPITULATIF!D25 -> http://www.sudsantesociaux35.org

Sheet CAT B CS Echelon 5
G2: Commission Administrative
G3: Paritaire | M3: =RECAPITULATIF!D7 -> Locale
M9: Mme, Mr :
M11: Grade :
M13: Service :
A16: Votre ou vos représentant-e-s du personnel
A18: =RECAPITULATIF!B5 -> Madame Françoise LAUTROU et Madame PERROT Anne
A20: SUD Santé Sociaux | E20: =RECAPITULATIF!D21 -> 35 | F20: du:
A22: =RECAPITULATIF!B2 -> Centre Hospitalier de Saint Malo
A24: siégeant auprès de la CAP | F24: =RECAPITULATIF!D7 -> Locale | J24: du : | K24: =RECAPITULATIF!D11 -> 2019-06-14 | N24: vous informe de votre :
F27: AVANCEMENT D’ECHELON
A33: Vous passez à l’échelon : | F33: ='GRILLE CAT B CS'!B17 -> 5 | H33: Indice Majoré : | L33: ='GRILLE CAT B CS'!D17 -> 534
A36: Date d'effet : | F36: / | H36: / | I36: =RECAPITULATIF!D9 -> 2019 | R36: ='GRILLE CAT B CS'!B2 -> Catégorie B Classe Supérieure Préparateur en pharmacie Hospitalière, Technicien de laboratoire médical, Diététicien
A40: Ce qui représente un gain mensuel de : | I40: ='GRILLE CAT B CS'!D17-'GRILLE CAT B CS'!D15 -> 24 | K40: points d'indice.
R41: ='GRILLE CAT B CS'!B7 -> Echelon | S41: ='GRILLE CAT B CS'!C7 -> Durée (en mois) | T41: ='GRILLE CAT B CS'!D7 -> Indice Majoré
A43: Pour information, la valeur brute du point d'indice | R43: ='GRILLE CAT B CS'!B9 -> 1 | S43: ='GRILLE CAT B CS'!C9 -> 12 | T43: ='GRILLE CAT B CS'!D9 -> 445
R45: ='GRILLE CAT B CS'!B11 -> 2 | S45: ='GRILLE CAT B CS'!C11 -> 24 | T45: ='GRILLE CAT B CS'!D11 -> 461
A46: est de | C46: =RECAPITULATIF!D13 -> 4.686 | E46: au | F46: =RECAPITULATIF!D15 -> 2019-01-01
R47: ='GRILLE CAT B CS'!B13 -> 3 | S47: ='GRILLE CAT B CS'!C13 -> 36 | T47: ='GRILLE CAT B CS'!D13 -> 485
A49: Soit un gain net mensuel de : | G49: =I40*C46*0.8315 -> 93.513816 | R49: ='GRILLE CAT B CS'!B15 -> 4 | S49: ='GRILLE CAT B CS'!C15 -> 36 | T49: ='GRILLE CAT B CS'!D15 -> 510
R51: ='GRILLE CAT B CS'!B17 -> 5 | S51: ='GRILLE CAT B CS'!C17 -> 48 | T51: ='GRILLE CAT B CS'!D17 -> 534
R53: ='GRILLE CAT B CS'!B19 -> 6 | S53: ='GRILLE CAT B CS'!C19 -> 48 | T53: ='GRILLE CAT B CS'!D19 -> 555
A54: Vos représentant-e-s SUD Santé Sociaux | I54: =RECAPITULATIF!D21 -> 35 | K54: sont à votre disposition
A55: pour tous renseignements complémentaires au poste : | M55: =RECAPITULATIF!D17 -> 2886 | R55: ='GRILLE CAT B CS'!B21 -> 7 | S55: ='GRILLE CAT B CS'!C21 -> 48 | T55: ='GRILLE CAT B CS'!D21 -> 569
R57: ='GRILLE CAT B CS'!B23 -> 8 | S57: ='GRILLE CAT B CS'!C23 -> 0 | T57: ='GRILLE CAT B CS'!D23 -> 587
R59: ='GRILLE CAT B CS'!B25 -> 0 | S59: ='GRILLE CAT B CS'!C25 -> 0 | T59: ='GRILLE CAT B CS'!D25 -> 0
A60: Recevez toutes nos salutations.
R61: ='GRILLE CAT B CS'!B27 -> 0 | S61: ='GRILLE CAT B CS'!C27 -> 0 | T61: ='GRILLE CAT B CS'!D27 -> 0
A63: =RECAPITULATIF!B5 -> Madame Françoise LAUTROU et Madame PERROT Anne
A65: SUD Santé Sociaux | E65: =RECAPITULATIF!D21 -> 35
A70: Tél : | B70: =RECAPITULATIF!D19 -> 299212886
A71: Mél : | C71: =RECAPITULATIF!C23 -> sudsante@ch-stmalo.fr
A72: =RECAPITULATIF!B25 -> Site Départemental Sud | F72: =RECAPITULATIF!D25 -> http://www.sudsantesociaux35.org

Sheet CAT B CS Echelon 6
G2: Commission Administrative
G3: Paritaire | M3: =RECAPITULATIF!D7 -> Locale
M9: Mme, Mr :
M11: Grade :
M13: Service :
A16: Votre ou vos représentant-e-s du personnel
A18: =RECAPITULATIF!B5 -> Madame Françoise LAUTROU et Madame PERROT Anne
A20: SUD Santé Sociaux | E20: =RECAPITULATIF!D21 -> 35 | F20: du:
A22: =RECAPITULATIF!B2 -> Centre Hospitalier de Saint Malo
A24: siégeant auprès de la CAP | F24: =RECAPITULATIF!D7 -> Locale | J24: du : | K24: =RECAPITULATIF!D11 -> 2019-06-14 | N24: vous informe de votre :
F27: AVANCEMENT D’ECHELON
A33: Vous passez à l’échelon : | F33: ='GRILLE CAT B CS'!B19 -> 6 | H33: Indice Majoré : | L33: ='GRILLE CAT B CS'!D19 -> 555
A36: Date d'effet : | F36: / | H36: / | I36: =RECAPITULATIF!D9 -> 2019 | R36: ='GRILLE CAT B CS'!B2 -> Catégorie B Classe Supérieure Préparateur en pharmacie Hospitalière, Technicien de laboratoire médical, Diététicien
A40: Ce qui représente un gain mensuel de : | I40: ='GRILLE CAT B CS'!D19-'GRILLE CAT B CS'!D17 -> 21 | K40: points d'indice.
R41: ='GRILLE CAT B CS'!B7 -> Echelon | S41: ='GRILLE CAT B CS'!C7 -> Durée (en mois) | T41: ='GRILLE CAT B CS'!D7 -> Indice Majoré
A43: Pour information, la valeur brute du point d'indice | R43: ='GRILLE CAT B CS'!B9 -> 1 | S43: ='GRILLE CAT B CS'!C9 -> 12 | T43: ='GRILLE CAT B CS'!D9 -> 445
R45: ='GRILLE CAT B CS'!B11 -> 2 | S45: ='GRILLE CAT B CS'!C11 -> 24 | T45: ='GRILLE CAT B CS'!D11 -> 461
A46: est de | C46: =RECAPITULATIF!D13 -> 4.686 | E46: au | F46: =RECAPITULATIF!D15 -> 2019-01-01
R47: ='GRILLE CAT B CS'!B13 -> 3 | S47: ='GRILLE CAT B CS'!C13 -> 36 | T47: ='GRILLE CAT B CS'!D13 -> 485
A49: Soit un gain net mensuel de : | G49: =I40*C46*0.8315 -> 81.824589 | R49: ='GRILLE CAT B CS'!B15 -> 4 | S49: ='GRILLE CAT B CS'!C15 -> 36 | T49: ='GRILLE CAT B CS'!D15 -> 510
R51: ='GRILLE CAT B CS'!B17 -> 5 | S51: ='GRILLE CAT B CS'!C17 -> 48 | T51: ='GRILLE CAT B CS'!D17 -> 534
R53: ='GRILLE CAT B CS'!B19 -> 6 | S53: ='GRILLE CAT B CS'!C19 -> 48 | T53: ='GRILLE CAT B CS'!D19 -> 555
A54: Vos représentant-e-s SUD Santé Sociaux | I54: =RECAPITULATIF!D21 -> 35 | K54: sont à votre disposition
A55: pour tous renseignements complémentaires au poste : | M55: =RECAPITULATIF!D17 -> 2886 | R55: ='GRILLE CAT B CS'!B21 -> 7 | S55: ='GRILLE CAT B CS'!C21 -> 48 | T55: ='GRILLE CAT B CS'!D21 -> 569
R57: ='GRILLE CAT B CS'!B23 -> 8 | S57: ='GRILLE CAT B CS'!C23 -> 0 | T57: ='GRILLE CAT B CS'!D23 -> 587
R59: ='GRILLE CAT B CS'!B25 -> 0 | S59: ='GRILLE CAT B CS'!C25 -> 0 | T59: ='GRILLE CAT B CS'!D25 -> 0
A60: Recevez toutes nos salutations.
R61: ='GRILLE CAT B CS'!B27 -> 0 | S61: ='GRILLE CAT B CS'!C27 -> 0 | T61: ='GRILLE CAT B CS'!D27 -> 0
A63: =RECAPITULATIF!B5 -> Madame Françoise LAUTROU et Madame PERROT Anne
A65: SUD Santé Sociaux | E65: =RECAPITULATIF!D21 -> 35
A70: Tél : | B70: =RECAPITULATIF!D19 -> 299212886
A71: Mél : | C71: =RECAPITULATIF!C23 -> sudsante@ch-stmalo.fr
A72: =RECAPITULATIF!B25 -> Site Départemental Sud | F72: =RECAPITULATIF!D25 -> http://www.sudsantesociaux35.org

Sheet CAT B CS Echelon 7
G2: Commission Administrative
G3: Paritaire | M3: =RECAPITULATIF!D7 -> Locale
M9: Mme, Mr :
M11: Grade :
M13: Service :
A16: Votre ou vos représentant-e-s du personnel
A18: =RECAPITULATIF!B5 -> Madame Françoise LAUTROU et Madame PERROT Anne
A20: SUD Santé Sociaux | E20: =RECAPITULATIF!D21 -> 35 | F20: du:
A22: =RECAPITULATIF!B2 -> Centre Hospitalier de Saint Malo
A24: siégeant auprès de la CAP | F24: =RECAPITULATIF!D7 -> Locale | J24: du : | K24: =RECAPITULATIF!D11 -> 2019-06-14 | N24: vous informe de votre :
F27: AVANCEMENT D’ECHELON
A33: Vous passez à l’échelon : | F33: ='GRILLE CAT B CS'!B21 -> 7 | H33: Indice Majoré : | L33: ='GRILLE CAT B CS'!D21 -> 569
A36: Date d'effet : | F36: / | H36: / | I36: =RECAPITULATIF!D9 -> 2019 | R36: ='GRILLE CAT B CS'!B2 -> Catégorie B Classe Supérieure Préparateur en pharmacie Hospitalière, Technicien de laboratoire médical, Diététicien
A40: Ce qui représente un gain mensuel de : | I40: ='GRILLE CAT B CS'!D21-'GRILLE CAT B CS'!D19 -> 14 | K40: points d'indice.
R41: ='GRILLE CAT B CS'!B7 -> Echelon | S41: ='GRILLE CAT B CS'!C7 -> Durée (en mois) | T41: ='GRILLE CAT B CS'!D7 -> Indice Majoré
A43: Pour information, la valeur brute du point d'indice | R43: ='GRILLE CAT B CS'!B9 -> 1 | S43: ='GRILLE CAT B CS'!C9 -> 12 | T43: ='GRILLE CAT B CS'!D9 -> 445
R45: ='GRILLE CAT B CS'!B11 -> 2 | S45: ='GRILLE CAT B CS'!C11 -> 24 | T45: ='GRILLE CAT B CS'!D11 -> 461
A46: est de | C46: =RECAPITULATIF!D13 -> 4.686 | E46: au | F46: =RECAPITULATIF!D15 -> 2019-01-01
R47: ='GRILLE CAT B CS'!B13 -> 3 | S47: ='GRILLE CAT B CS'!C13 -> 36 | T47: ='GRILLE CAT B CS'!D13 -> 485
A49: Soit un gain net mensuel de : | G49: =I40*C46*0.8315 -> 54.549726 | R49: ='GRILLE CAT B CS'!B15 -> 4 | S49: ='GRILLE CAT B CS'!C15 -> 36 | T49: ='GRILLE CAT B CS'!D15 -> 510
R51: ='GRILLE CAT B CS'!B17 -> 5 | S51: ='GRILLE CAT B CS'!C17 -> 48 | T51: ='GRILLE CAT B CS'!D17 -> 534
R53: ='GRILLE CAT B CS'!B19 -> 6 | S53: ='GRILLE CAT B CS'!C19 -> 48 | T53: ='GRILLE CAT B CS'!D19 -> 555
A54: Vos représentant-e-s SUD Santé Sociaux | I54: =RECAPITULATIF!D21 -> 35 | K54: sont à votre disposition
A55: pour tous renseignements complémentaires au poste : | M55: =RECAPITULATIF!D17 -> 2886 | R55: ='GRILLE CAT B CS'!B21 -> 7 | S55: ='GRILLE CAT B CS'!C21 -> 48 | T55: ='GRILLE CAT B CS'!D21 -> 569
R57: ='GRILLE CAT B CS'!B23 -> 8 | S57: ='GRILLE CAT B CS'!C23 -> 0 | T57: ='GRILLE CAT B CS'!D23 -> 587
R59: ='GRILLE CAT B CS'!B25 -> 0 | S59: ='GRILLE CAT B CS'!C25 -> 0 | T59: ='GRILLE CAT B CS'!D25 -> 0
A60: Recevez toutes nos salutations.
R61: ='GRILLE CAT B CS'!B27 -> 0 | S61: ='GRILLE CAT B CS'!C27 -> 0 | T61: ='GRILLE CAT B CS'!D27 -> 0
A63: =RECAPITULATIF!B5 -> Madame Françoise LAUTROU et Madame PERROT Anne
A65: SUD Santé Sociaux | E65: =RECAPITULATIF!D21 -> 35
A70: Tél : | B70: =RECAPITULATIF!D19 -> 299212886
A71: Mél : | C71: =RECAPITULATIF!C23 -> sudsante@ch-stmalo.fr
A72: =RECAPITULATIF!B25 -> Site Départemental Sud | F72: =RECAPITULATIF!D25 -> http://www.sudsantesociaux35.org

Sheet CAT B CS Echelon 8
G2: Commission Administrative
G3: Paritaire | M3: =RECAPITULATIF!D7 -> Locale
M9: Mme, Mr :
M11: Grade :
M13: Service :
A16: Votre ou vos représentant-e-s du personnel
A18: =RECAPITULATIF!B5 -> Madame Françoise LAUTROU et Madame PERROT Anne
A20: SUD Santé Sociaux | E20: =RECAPITULATIF!D21 -> 35 | F20: du:
A22: =RECAPITULATIF!B2 -> Centre Hospitalier de Saint Malo
A24: siégeant auprès de la CAP | F24: =RECAPITULATIF!D7 -> Locale | J24: du : | K24: =RECAPITULATIF!D11 -> 2019-06-14 | N24: vous informe de votre :
F27: AVANCEMENT D’ECHELON
A33: Vous passez à l’échelon : | F33: ='GRILLE CAT B CS'!B23 -> 8 | H33: Indice Majoré : | L33: ='GRILLE CAT B CS'!D23 -> 587
A36: Date d'effet : | F36: / | H36: / | I36: =RECAPITULATIF!D9 -> 2019 | R36: ='GRILLE CAT B CS'!B2 -> Catégorie B Classe Supérieure Préparateur en pharmacie Hospitalière, Technicien de laboratoire médical, Diététicien
A40: Ce qui représente un gain mensuel de : | I40: ='GRILLE CAT B CS'!D23-'GRILLE CAT B CS'!D21 -> 18 | K40: points d'indice.
R41: ='GRILLE CAT B CS'!B7 -> Echelon | S41: ='GRILLE CAT B CS'!C7 -> Durée (en mois) | T41: ='GRILLE CAT B CS'!D7 -> Indice Majoré
A43: Pour information, la valeur brute du point d'indice | R43: ='GRILLE CAT B CS'!B9 -> 1 | S43: ='GRILLE CAT B CS'!C9 -> 12 | T43: ='GRILLE CAT B CS'!D9 -> 445
R45: ='GRILLE CAT B CS'!B11 -> 2 | S45: ='GRILLE CAT B CS'!C11 -> 24 | T45: ='GRILLE CAT B CS'!D11 -> 461
A46: est de | C46: =RECAPITULATIF!D13 -> 4.686 | E46: au | F46: =RECAPITULATIF!D15 -> 2019-01-01
R47: ='GRILLE CAT B CS'!B13 -> 3 | S47: ='GRILLE CAT B CS'!C13 -> 36 | T47: ='GRILLE CAT B CS'!D13 -> 485
A49: Soit un gain net mensuel de : | G49: =I40*C46*0.8315 -> 70.135362 | R49: ='GRILLE CAT B CS'!B15 -> 4 | S49: ='GRILLE CAT B CS'!C15 -> 36 | T49: ='GRILLE CAT B CS'!D15 -> 510
R51: ='GRILLE CAT B CS'!B17 -> 5 | S51: ='GRILLE CAT B CS'!C17 -> 48 | T51: ='GRILLE CAT B CS'!D17 -> 534
R53: ='GRILLE CAT B CS'!B19 -> 6 | S53: ='GRILLE CAT B CS'!C19 -> 48 | T53: ='GRILLE CAT B CS'!D19 -> 555
A54: Vos représentant-e-s SUD Santé Sociaux | I54: =RECAPITULATIF!D21 -> 35 | K54: sont à votre disposition
A55: pour tous renseignements complémentaires au poste : | M55: =RECAPITULATIF!D17 -> 2886 | R55: ='GRILLE CAT B CS'!B21 -> 7 | S55: ='GRILLE CAT B CS'!C21 -> 48 | T55: ='GRILLE CAT B CS'!D21 -> 569
R57: ='GRILLE CAT B CS'!B23 -> 8 | S57: ='GRILLE CAT B CS'!C23 -> 0 | T57: ='GRILLE CAT B CS'!D23 -> 587
R59: ='GRILLE CAT B CS'!B25 -> 0 | S59: ='GRILLE CAT B CS'!C25 -> 0 | T59: ='GRILLE CAT B CS'!D25 -> 0
A60: Recevez toutes nos salutations.
R61: ='GRILLE CAT B CS'!B27 -> 0 | S61: ='GRILLE CAT B CS'!C27 -> 0 | T61: ='GRILLE CAT B CS'!D27 -> 0
A63: =RECAPITULATIF!B5 -> Madame Françoise LAUTROU et Madame PERROT Anne
A65: SUD Santé Sociaux | E65: =RECAPITULATIF!D21 -> 35
A70: Tél : | B70: =RECAPITULATIF!D19 -> 299212886
A71: Mél : | C71: =RECAPITULATIF!C23 -> sudsante@ch-stmalo.fr
A72: =RECAPITULATIF!B25 -> Site Départemental Sud | F72: =RECAPITULATIF!D25 -> http://www.sudsantesociaux35.org

Sheet GRILLE Cat B CN EXT
B2: Catégorie B Classe Normale Extinction Infirmier-ère D.E., Manipulateur d'Electroradiologie Médicale, Masseur-Kinésithérapeute, Ergothérapeute, Psychomotricien, Orthophoniste, Pédicure-Podologue
B7: Echelon | C7: Durée (en mois) | D7: Indice Majoré
B9: 1 | C9: 24 | D9: 356
B11: 2 | C11: 36 | D11: 371
B13: 3 | C13: 36 | D13: 389
B15: 4 | C15: 48 | D15: 409
B17: 5 | C17: 48 | D17: 429
B19: 6 | C19: 48 | D19: 462
B21: 7 | C21: 48 | D21: 495
B23: 8 | D23: 534

Sheet IMP GRILLE Cat B CN EXT
B2: 1) Imprimez autant de feuilles que d'agents concernés.
B4: 2) Pliez en 3 au niveau du repère, deux petits traits noirs.
B6: 3) Inserrez ce courrier dans une enveloppe 110 X 220 à fenêtre.

Sheet Cat B CN EXT Echelon 2
G2: Commission Administrative
G3: Paritaire | M3: =RECAPITULATIF!D7 -> Locale
M9: Mme, Mr :
M11: Grade :
M13: Service :
A16: Votre ou vos représentant-e-s du personnel
A18: =RECAPITULATIF!B5 -> Madame Françoise LAUTROU et Madame PERROT Anne
A20: SUD Santé Sociaux | E20: =RECAPITULATIF!D21 -> 35 | F20: du:
A22: =RECAPITULATIF!B2 -> Centre Hospitalier de Saint Malo
A24: siégeant auprès de la CAP | F24: =RECAPITULATIF!D7 -> Locale | J24: du : | K24: =RECAPITULATIF!D11 -> 2019-06-14 | N24: vous informe de votre :
F27: AVANCEMENT D’ECHELON
A33: Vous passez à l’échelon : | F33: ='GRILLE Cat B CN EXT'!B11 -> 2 | H33: Indice Majoré : | L33: ='GRILLE Cat B CN EXT'!D11 -> 371
A36: Date d'effet : | F36: / | H36: / | I36: =RECAPITULATIF!D9 -> 2019 | R36: ='GRILLE Cat B CN EXT'!B2 -> Catégorie B Classe Normale Extinction Infirmier-ère D.E., Manipulateur d'Electroradiologie Médicale, Masseur-Kinésithérapeute, Ergothérapeute, Psychomotricien, Orthophoniste, Pédicure-Podologue
A40: Ce qui représente un gain mensuel de : | I40: ='GRILLE Cat B CN EXT'!D11-'GRILLE Cat B CN EXT'!D9 -> 15 | K40: points d'indice.
R41: ='GRILLE Cat B CN EXT'!B7 -> Echelon | S41: ='GRILLE Cat B CN EXT'!C7 -> Durée (en mois) | T41: ='GRILLE Cat B CN EXT'!D7 -> Indice Majoré
A43: Pour information, la valeur brute du point d'indice | R43: ='GRILLE Cat B CN EXT'!B9 -> 1 | S43: ='GRILLE Cat B CN EXT'!C9 -> 24 | T43: ='GRILLE Cat B CN EXT'!D9 -> 356
R45: ='GRILLE Cat B CN EXT'!B11 -> 2 | S45: ='GRILLE Cat B CN EXT'!C11 -> 36 | T45: ='GRILLE Cat B CN EXT'!D11 -> 371
A46: est de | C46: =RECAPITULATIF!D13 -> 4.686 | E46: au | F46: =RECAPITULATIF!D15 -> 2019-01-01
R47: ='GRILLE Cat B CN EXT'!B13 -> 3 | S47: ='GRILLE Cat B CN EXT'!C13 -> 36 | T47: ='GRILLE Cat B CN EXT'!D13 -> 389
A49: Soit un gain net mensuel de : | G49: =I40*C46*0.8315 -> 58.446135 | R49: ='GRILLE Cat B CN EXT'!B15 -> 4 | S49: ='GRILLE Cat B CN EXT'!C15 -> 48 | T49: ='GRILLE Cat B CN EXT'!D15 -> 409
R51: ='GRILLE Cat B CN EXT'!B17 -> 5 | S51: ='GRILLE Cat B CN EXT'!C17 -> 48 | T51: ='GRILLE Cat B CN EXT'!D17 -> 429
R53: ='GRILLE Cat B CN EXT'!B19 -> 6 | S53: ='GRILLE Cat B CN EXT'!C19 -> 48 | T53: ='GRILLE Cat B CN EXT'!D19 -> 462
A54: Vos représentant-e-s SUD Santé Sociaux | I54: =RECAPITULATIF!D21 -> 35 | K54: sont à votre disposition
A55: pour tous renseignements complémentaires au poste : | M55: =RECAPITULATIF!D17 -> 2886 | R55: ='GRILLE Cat B CN EXT'!B21 -> 7 | S55: ='GRILLE Cat B CN EXT'!C21 -> 48 | T55: ='GRILLE Cat B CN EXT'!D21 -> 495
R57: ='GRILLE Cat B CN EXT'!B23 -> 8 | S57: ='GRILLE Cat B CN EXT'!C23 -> 0 | T57: ='GRILLE Cat B CN EXT'!D23 -> 534
R59: ='GRILLE Cat B CN EXT'!B25 -> 0 | S59: ='GRILLE Cat B CN EXT'!C25 -> 0 | T59: ='GRILLE Cat B CN EXT'!D25 -> 0
A60: Recevez toutes nos salutations.
R61: ='GRILLE Cat B CN EXT'!B27 -> 0 | S61: ='GRILLE Cat B CN EXT'!C27 -> 0 | T61: ='GRILLE Cat B CN EXT'!D27 -> 0
A63: =RECAPITULATIF!B5 -> Madame Françoise LAUTROU et Madame PERROT Anne
A65: SUD Santé Sociaux | E65: =RECAPITULATIF!D21 -> 35
A70: Tél : | B70: =RECAPITULATIF!D19 -> 299212886
A71: Mél : | C71: =RECAPITULATIF!C23 -> sudsante@ch-stmalo.fr
A72: =RECAPITULATIF!B25 -> Site Départemental Sud | F72: =RECAPITULATIF!D25 -> http://www.sudsantesociaux35.org

Sheet Cat B CN EXT Echelon 3
G2: Commission Administrative
G3: Paritaire | M3: =RECAPITULATIF!D7 -> Locale
M9: Mme, Mr :
M11: Grade :
M13: Service :
A16: Votre ou vos représentant-e-s du personnel
A18: =RECAPITULATIF!B5 -> Madame Françoise LAUTROU et Madame PERROT Anne
A20: SUD Santé Sociaux | E20: =RECAPITULATIF!D21 -> 35 | F20: du:
A22: =RECAPITULATIF!B2 -> Centre Hospitalier de Saint Malo
A24: siégeant auprès de la CAP | F24: =RECAPITULATIF!D7 -> Locale | J24: du : | K24: =RECAPITULATIF!D11 -> 2019-06-14 | N24: vous informe de votre :
F27: AVANCEMENT D’ECHELON
A33: Vous passez à l’échelon : | F33: ='GRILLE Cat B CN EXT'!B13 -> 3 | H33: Indice Majoré : | L33: ='GRILLE Cat B CN EXT'!D13 -> 389
A36: Date d'effet : | F36: / | H36: / | I36: =RECAPITULATIF!D9 -> 2019 | R36: ='GRILLE Cat B CN EXT'!B2 -> Catégorie B Classe Normale Extinction Infirmier-ère D.E., Manipulateur d'Electroradiologie Médicale, Masseur-Kinésithérapeute, Ergothérapeute, Psychomotricien, Orthophoniste, Pédicure-Podologue
A40: Ce qui représente un gain mensuel de : | I40: ='GRILLE Cat B CN EXT'!D13-'GRILLE Cat B CN EXT'!D11 -> 18 | K40: points d'indice.
R41: ='GRILLE Cat B CN EXT'!B7 -> Echelon | S41: ='GRILLE Cat B CN EXT'!C7 -> Durée (en mois) | T41: ='GRILLE Cat B CN EXT'!D7 -> Indice Majoré
A43: Pour information, la valeur brute du point d'indice | R43: ='GRILLE Cat B CN EXT'!B9 -> 1 | S43: ='GRILLE Cat B CN EXT'!C9 -> 24 | T43: ='GRILLE Cat B CN EXT'!D9 -> 356
R45: ='GRILLE Cat B CN EXT'!B11 -> 2 | S45: ='GRILLE Cat B CN EXT'!C11 -> 36 | T45: ='GRILLE Cat B CN EXT'!D11 -> 371
A46: est de | C46: =RECAPITULATIF!D13 -> 4.686 | E46: au | F46: =RECAPITULATIF!D15 -> 2019-01-01
R47: ='GRILLE Cat B CN EXT'!B13 -> 3 | S47: ='GRILLE Cat B CN EXT'!C13 -> 36 | T47: ='GRILLE Cat B CN EXT'!D13 -> 389
A49: Soit un gain net mensuel de : | G49: =I40*C46*0.8315 -> 70.135362 | R49: ='GRILLE Cat B CN EXT'!B15 -> 4 | S49: ='GRILLE Cat B CN EXT'!C15 -> 48 | T49: ='GRILLE Cat B CN EXT'!D15 -> 409
R51: ='GRILLE Cat B CN EXT'!B17 -> 5 | S51: ='GRILLE Cat B CN EXT'!C17 -> 48 | T51: ='GRILLE Cat B CN EXT'!D17 -> 429
R53: ='GRILLE Cat B CN EXT'!B19 -> 6 | S53: ='GRILLE Cat B CN EXT'!C19 -> 48 | T53: ='GRILLE Cat B CN EXT'!D19 -> 462
A54: Vos représentant-e-s SUD Santé Sociaux | I54: =RECAPITULATIF!D21 -> 35 | K54: sont à votre disposition
A55: pour tous renseignements complémentaires au poste : | M55: =RECAPITULATIF!D17 -> 2886 | R55: ='GRILLE Cat B CN EXT'!B21 -> 7 | S55: ='GRILLE Cat B CN EXT'!C21 -> 48 | T55: ='GRILLE Cat B CN EXT'!D21 -> 495
R57: ='GRILLE Cat B CN EXT'!B23 -> 8 | S57: ='GRILLE Cat B CN EXT'!C23 -> 0 | T57: ='GRILLE Cat B CN EXT'!D23 -> 534
R59: ='GRILLE Cat B CN EXT'!B25 -> 0 | S59: ='GRILLE Cat B CN EXT'!C25 -> 0 | T59: ='GRILLE Cat B CN EXT'!D25 -> 0
A60: Recevez toutes nos salutations.
R61: ='GRILLE Cat B CN EXT'!B27 -> 0 | S61: ='GRILLE Cat B CN EXT'!C27 -> 0 | T61: ='GRILLE Cat B CN EXT'!D27 -> 0
A63: =RECAPITULATIF!B5 -> Madame Françoise LAUTROU et Madame PERROT Anne
A65: SUD Santé Sociaux | E65: =RECAPITULATIF!D21 -> 35
A70: Tél : | B70: =RECAPITULATIF!D19 -> 299212886
A71: Mél : | C71: =RECAPITULATIF!C23 -> sudsante@ch-stmalo.fr
A72: =RECAPITULATIF!B25 -> Site Départemental Sud | F72: =RECAPITULATIF!D25 -> http://www.sudsantesociaux35.org

Sheet Cat B CN EXT Echelon 4
G2: Commission Administrative
G3: Paritaire | M3: =RECAPITULATIF!D7 -> Locale
M9: Mme, Mr :
M11: Grade :
M13: Service :
A16: Votre ou vos représentant-e-s du personnel
A18: =RECAPITULATIF!B5 -> Madame Françoise LAUTROU et Madame PERROT Anne
A20: SUD Santé Sociaux | E20: =RECAPITULATIF!D21 -> 35 | F20: du:
A22: =RECAPITULATIF!B2 -> Centre Hospitalier de Saint Malo
A24: siégeant auprès de la CAP | F24: =RECAPITULATIF!D7 -> Locale | J24: du : | K24: =RECAPITULATIF!D11 -> 2019-06-14 | N24: vous informe de votre :
F27: AVANCEMENT D’ECHELON
A33: Vous passez à l’échelon : | F33: ='GRILLE Cat B CN EXT'!B15 -> 4 | H33: Indice Majoré : | L33: ='GRILLE Cat B CN EXT'!D15 -> 409
A36: Date d'effet : | F36: / | H36: / | I36: =RECAPITULATIF!D9 -> 2019 | R36: ='GRILLE Cat B CN EXT'!B2 -> Catégorie B Classe Normale Extinction Infirmier-ère D.E., Manipulateur d'Electroradiologie Médicale, Masseur-Kinésithérapeute, Ergothérapeute, Psychomotricien, Orthophoniste, Pédicure-Podologue
A40: Ce qui représente un gain mensuel de : | I40: ='GRILLE Cat B CN EXT'!D15-'GRILLE Cat B CN EXT'!D13 -> 20 | K40: points d'indice.
R41: ='GRILLE Cat B CN EXT'!B7 -> Echelon | S41: ='GRILLE Cat B CN EXT'!C7 -> Durée (en mois) | T41: ='GRILLE Cat B CN EXT'!D7 -> Indice Majoré
A43: Pour information, la valeur brute du point d'indice | R43: ='GRILLE Cat B CN EXT'!B9 -> 1 | S43: ='GRILLE Cat B CN EXT'!C9 -> 24 | T43: ='GRILLE Cat B CN EXT'!D9 -> 356
R45: ='GRILLE Cat B CN EXT'!B11 -> 2 | S45: ='GRILLE Cat B CN EXT'!C11 -> 36 | T45: ='GRILLE Cat B CN EXT'!D11 -> 371
A46: est de | C46: =RECAPITULATIF!D13 -> 4.686 | E46: au | F46: =RECAPITULATIF!D15 -> 2019-01-01
R47: ='GRILLE Cat B CN EXT'!B13 -> 3 | S47: ='GRILLE Cat B CN EXT'!C13 -> 36 | T47: ='GRILLE Cat B CN EXT'!D13 -> 389
A49: Soit un gain net mensuel de : | G49: =I40*C46*0.8315 -> 77.92818 | R49: ='GRILLE Cat B CN EXT'!B15 -> 4 | S49: ='GRILLE Cat B CN EXT'!C15 -> 48 | T49: ='GRILLE Cat B CN EXT'!D15 -> 409
R51: ='GRILLE Cat B CN EXT'!B17 -> 5 | S51: ='GRILLE Cat B CN EXT'!C17 -> 48 | T51: ='GRILLE Cat B CN EXT'!D17 -> 429
R53: ='GRILLE Cat B CN EXT'!B19 -> 6 | S53: ='GRILLE Cat B CN EXT'!C19 -> 48 | T53: ='GRILLE Cat B CN EXT'!D19 -> 462
A54: Vos représentant-e-s SUD Santé Sociaux | I54: =RECAPITULATIF!D21 -> 35 | K54: sont à votre disposition
A55: pour tous renseignements complémentaires au poste : | M55: =RECAPITULATIF!D17 -> 2886 | R55: ='GRILLE Cat B CN EXT'!B21 -> 7 | S55: ='GRILLE Cat B CN EXT'!C21 -> 48 | T55: ='GRILLE Cat B CN EXT'!D21 -> 495
R57: ='GRILLE Cat B CN EXT'!B23 -> 8 | S57: ='GRILLE Cat B CN EXT'!C23 -> 0 | T57: ='GRILLE Cat B CN EXT'!D23 -> 534
R59: ='GRILLE Cat B CN EXT'!B25 -> 0 | S59: ='GRILLE Cat B CN EXT'!C25 -> 0 | T59: ='GRILLE Cat B CN EXT'!D25 -> 0
A60: Recevez toutes nos salutations.
R61: ='GRILLE Cat B CN EXT'!B27 -> 0 | S61: ='GRILLE Cat B CN EXT'!C27 -> 0 | T61: ='GRILLE Cat B CN EXT'!D27 -> 0
A63: =RECAPITULATIF!B5 -> Madame Françoise LAUTROU et Madame PERROT Anne
A65: SUD Santé Sociaux | E65: =RECAPITULATIF!D21 -> 35
A70: Tél : | B70: =RECAPITULATIF!D19 -> 299212886
A71: Mél : | C71: =RECAPITULATIF!C23 -> sudsante@ch-stmalo.fr
A72: =RECAPITULATIF!B25 -> Site Départemental Sud | F72: =RECAPITULATIF!D25 -> http://www.sudsantesociaux35.org

Sheet Cat B CN EXT Echelon 5
G2: Commission Administrative
G3: Paritaire | M3: =RECAPITULATIF!D7 -> Locale
M9: Mme, Mr :
M11: Grade :
M13: Service :
A16: Votre ou vos représentant-e-s du personnel
A18: =RECAPITULATIF!B5 -> Madame Françoise LAUTROU et Madame PERROT Anne
A20: SUD Santé Sociaux | E20: =RECAPITULATIF!D21 -> 35 | F20: du:
A22: =RECAPITULATIF!B2 -> Centre Hospitalier de Saint Malo
A24: siégeant auprès de la CAP | F24: =RECAPITULATIF!D7 -> Locale | J24: du : | K24: =RECAPITULATIF!D11 -> 2019-06-14 | N24: vous informe de votre :
F27: AVANCEMENT D’ECHELON
A33: Vous passez à l’échelon : | F33: ='GRILLE Cat B CN EXT'!B17 -> 5 | H33: Indice Majoré : | L33: ='GRILLE Cat B CN EXT'!D17 -> 429
A36: Date d'effet : | F36: / | H36: / | I36: =RECAPITULATIF!D9 -> 2019 | R36: ='GRILLE Cat B CN EXT'!B2 -> Catégorie B Classe Normale Extinction Infirmier-ère D.E., Manipulateur d'Electroradiologie Médicale, Masseur-Kinésithérapeute, Ergothérapeute, Psychomotricien, Orthophoniste, Pédicure-Podologue
A40: Ce qui représente un gain mensuel de : | I40: ='GRILLE Cat B CN EXT'!D17-'GRILLE Cat B CN EXT'!D15 -> 20 | K40: points d'indice.
R41: ='GRILLE Cat B CN EXT'!B7 -> Echelon | S41: ='GRILLE Cat B CN EXT'!C7 -> Durée (en mois) | T41: ='GRILLE Cat B CN EXT'!D7 -> Indice Majoré
A43: Pour information, la valeur brute du point d'indice | R43: ='GRILLE Cat B CN EXT'!B9 -> 1 | S43: ='GRILLE Cat B CN EXT'!C9 -> 24 | T43: ='GRILLE Cat B CN EXT'!D9 -> 356
R45: ='GRILLE Cat B CN EXT'!B11 -> 2 | S45: ='GRILLE Cat B CN EXT'!C11 -> 36 | T45: ='GRILLE Cat B CN EXT'!D11 -> 371
A46: est de | C46: =RECAPITULATIF!D13 -> 4.686 | E46: au | F46: =RECAPITULATIF!D15 -> 2019-01-01
R47: ='GRILLE Cat B CN EXT'!B13 -> 3 | S47: ='GRILLE Cat B CN EXT'!C13 -> 36 | T47: ='GRILLE Cat B CN EXT'!D13 -> 389
A49: Soit un gain net mensuel de : | G49: =I40*C46*0.8315 -> 77.92818 | R49: ='GRILLE Cat B CN EXT'!B15 -> 4 | S49: ='GRILLE Cat B CN EXT'!C15 -> 48 | T49: ='GRILLE Cat B CN EXT'!D15 -> 409
R51: ='GRILLE Cat B CN EXT'!B17 -> 5 | S51: ='GRILLE Cat B CN EXT'!C17 -> 48 | T51: ='GRILLE Cat B CN EXT'!D17 -> 429
R53: ='GRILLE Cat B CN EXT'!B19 -> 6 | S53: ='GRILLE Cat B CN EXT'!C19 -> 48 | T53: ='GRILLE Cat B CN EXT'!D19 -> 462
A54: Vos représentant-e-s SUD Santé Sociaux | I54: =RECAPITULATIF!D21 -> 35 | K54: sont à votre disposition
A55: pour tous renseignements complémentaires au poste : | M55: =RECAPITULATIF!D17 -> 2886 | R55: ='GRILLE Cat B CN EXT'!B21 -> 7 | S55: ='GRILLE Cat B CN EXT'!C21 -> 48 | T55: ='GRILLE Cat B CN EXT'!D21 -> 495
R57: ='GRILLE Cat B CN EXT'!B23 -> 8 | S57: ='GRILLE Cat B CN EXT'!C23 -> 0 | T57: ='GRILLE Cat B CN EXT'!D23 -> 534
R59: ='GRILLE Cat B CN EXT'!B25 -> 0 | S59: ='GRILLE Cat B CN EXT'!C25 -> 0 | T59: ='GRILLE Cat B CN EXT'!D25 -> 0
A60: Recevez toutes nos salutations.
R61: ='GRILLE Cat B CN EXT'!B27 -> 0 | S61: ='GRILLE Cat B CN EXT'!C27 -> 0 | T61: ='GRILLE Cat B CN EXT'!D27 -> 0
A63: =RECAPITULATIF!B5 -> Madame Françoise LAUTROU et Madame PERROT Anne
A65: SUD Santé Sociaux | E65: =RECAPITULATIF!D21 -> 35
A70: Tél : | B70: =RECAPITULATIF!D19 -> 299212886
A71: Mél : | C71: =RECAPITULATIF!C23 -> sudsante@ch-stmalo.fr
A72: =RECAPITULATIF!B25 -> Site Départemental Sud | F72: =RECAPITULATIF!D25 -> http://www.sudsantesociaux35.org

Sheet Cat B CN EXT Echelon 6
G2: Commission Administrative
G3: Paritaire | M3: =RECAPITULATIF!D7 -> Locale
M9: Mme, Mr :
M11: Grade :
M13: Service :
A16: Votre ou vos représentant-e-s du personnel
A18: =RECAPITULATIF!B5 -> Madame Françoise LAUTROU et Madame PERROT Anne
A20: SUD Santé Sociaux | E20: =RECAPITULATIF!D21 -> 35 | F20: du:
A22: =RECAPITULATIF!B2 -> Centre Hospitalier de Saint Malo
A24: siégeant auprès de la CAP | F24: =RECAPITULATIF!D7 -> Locale | J24: du : | K24: =RECAPITULATIF!D11 -> 2019-06-14 | N24: vous informe de votre :
F27: AVANCEMENT D’ECHELON
A33: Vous passez à l’échelon : | F33: ='GRILLE Cat B CN EXT'!B19 -> 6 | H33: Indice Majoré : | L33: ='GRILLE Cat B CN EXT'!D19 -> 462
A36: Date d'effet : | F36: / | H36: / | I36: =RECAPITULATIF!D9 -> 2019 | R36: ='GRILLE Cat B CN EXT'!B2 -> Catégorie B Classe Normale Extinction Infirmier-ère D.E., Manipulateur d'Electroradiologie Médicale, Masseur-Kinésithérapeute, Ergothérapeute, Psychomotricien, Orthophoniste, Pédicure-Podologue
A40: Ce qui représente un gain mensuel de : | I40: ='GRILLE Cat B CN EXT'!D19-'GRILLE Cat B CN EXT'!D17 -> 33 | K40: points d'indice.
R41: ='GRILLE Cat B CN EXT'!B7 -> Echelon | S41: ='GRILLE Cat B CN EXT'!C7 -> Durée (en mois) | T41: ='GRILLE Cat B CN EXT'!D7 -> Indice Majoré
A43: Pour information, la valeur brute du point d'indice | R43: ='GRILLE Cat B CN EXT'!B9 -> 1 | S43: ='GRILLE Cat B CN EXT'!C9 -> 24 | T43: ='GRILLE Cat B CN EXT'!D9 -> 356
R45: ='GRILLE Cat B CN EXT'!B11 -> 2 | S45: ='GRILLE Cat B CN EXT'!C11 -> 36 | T45: ='GRILLE Cat B CN EXT'!D11 -> 371
A46: est de | C46: =RECAPITULATIF!D13 -> 4.686 | E46: au | F46: =RECAPITULATIF!D15 -> 2019-01-01
R47: ='GRILLE Cat B CN EXT'!B13 -> 3 | S47: ='GRILLE Cat B CN EXT'!C13 -> 36 | T47: ='GRILLE Cat B CN EXT'!D13 -> 389
A49: Soit un gain net mensuel de : | G49: =I40*C46*0.8315 -> 128.581497 | R49: ='GRILLE Cat B CN EXT'!B15 -> 4 | S49: ='GRILLE Cat B CN EXT'!C15 -> 48 | T49: ='GRILLE Cat B CN EXT'!D15 -> 409
R51: ='GRILLE Cat B CN EXT'!B17 -> 5 | S51: ='GRILLE Cat B CN EXT'!C17 -> 48 | T51: ='GRILLE Cat B CN EXT'!D17 -> 429
R53: ='GRILLE Cat B CN EXT'!B19 -> 6 | S53: ='GRILLE Cat B CN EXT'!C19 -> 48 | T53: ='GRILLE Cat B CN EXT'!D19 -> 462
A54: Vos représentant-e-s SUD Santé Sociaux | I54: =RECAPITULATIF!D21 -> 35 | K54: sont à votre disposition
A55: pour tous renseignements complémentaires au poste : | M55: =RECAPITULATIF!D17 -> 2886 | R55: ='GRILLE Cat B CN EXT'!B21 -> 7 | S55: ='GRILLE Cat B CN EXT'!C21 -> 48 | T55: ='GRILLE Cat B CN EXT'!D21 -> 495
R57: ='GRILLE Cat B CN EXT'!B23 -> 8 | S57: ='GRILLE Cat B CN EXT'!C23 -> 0 | T57: ='GRILLE Cat B CN EXT'!D23 -> 534
R59: ='GRILLE Cat B CN EXT'!B25 -> 0 | S59: ='GRILLE Cat B CN EXT'!C25 -> 0 | T59: ='GRILLE Cat B CN EXT'!D25 -> 0
A60: Recevez toutes nos salutations.
R61: ='GRILLE Cat B CN EXT'!B27 -> 0 | S61: ='GRILLE Cat B CN EXT'!C27 -> 0 | T61: ='GRILLE Cat B CN EXT'!D27 -> 0
A63: =RECAPITULATIF!B5 -> Madame Françoise LAUTROU et Madame PERROT Anne
A65: SUD Santé Sociaux | E65: =RECAPITULATIF!D21 -> 35
A70: Tél : | B70: =RECAPITULATIF!D19 -> 299212886
A71: Mél : | C71: =RECAPITULATIF!C23 -> sudsante@ch-stmalo.fr
A72: =RECAPITULATIF!B25 -> Site Départemental Sud | F72: =RECAPITULATIF!D25 -> http://www.sudsantesociaux35.org

Sheet Cat B CN EXT Echelon 7
G2: Commission Administrative
G3: Paritaire | M3: =RECAPITULATIF!D7 -> Locale
M9: Mme, Mr :
M11: Grade :
M13: Service :
A16: Votre ou vos représentant-e-s du personnel
A18: =RECAPITULATIF!B5 -> Madame Françoise LAUTROU et Madame PERROT Anne
A20: SUD Santé Sociaux | E20: =RECAPITULATIF!D21 -> 35 | F20: du:
A22: =RECAPITULATIF!B2 -> Centre Hospitalier de Saint Malo
A24: siégeant auprès de la CAP | F24: =RECAPITULATIF!D7 -> Locale | J24: du : | K24: =RECAPITULATIF!D11 -> 2019-06-14 | N24: vous informe de votre :
F27: AVANCEMENT D’ECHELON
A33: Vous passez à l’échelon : | F33: ='GRILLE Cat B CN EXT'!B21 -> 7 | H33: Indice Majoré : | L33: ='GRILLE Cat B CN EXT'!D21 -> 495
A36: Date d'effet : | F36: / | H36: / | I36: =RECAPITULATIF!D9 -> 2019 | R36: ='GRILLE Cat B CN EXT'!B2 -> Catégorie B Classe Normale Extinction Infirmier-ère D.E., Manipulateur d'Electroradiologie Médicale, Masseur-Kinésithérapeute, Ergothérapeute, Psychomotricien, Orthophoniste, Pédicure-Podologue
A40: Ce qui représente un gain mensuel de : | I40: ='GRILLE Cat B CN EXT'!D21-'GRILLE Cat B CN EXT'!D19 -> 33 | K40: points d'indice.
R41: ='GRILLE Cat B CN EXT'!B7 -> Echelon | S41: ='GRILLE Cat B CN EXT'!C7 -> Durée (en mois) | T41: ='GRILLE Cat B CN EXT'!D7 -> Indice Majoré
A43: Pour information, la valeur brute du point d'indice | R43: ='GRILLE Cat B CN EXT'!B9 -> 1 | S43: ='GRILLE Cat B CN EXT'!C9 -> 24 | T43: ='GRILLE Cat B CN EXT'!D9 -> 356
R45: ='GRILLE Cat B CN EXT'!B11 -> 2 | S45: ='GRILLE Cat B CN EXT'!C11 -> 36 | T45: ='GRILLE Cat B CN EXT'!D11 -> 371
A46: est de | C46: =RECAPITULATIF!D13 -> 4.686 | E46: au | F46: =RECAPITULATIF!D15 -> 2019-01-01
R47: ='GRILLE Cat B CN EXT'!B13 -> 3 | S47: ='GRILLE Cat B CN EXT'!C13 -> 36 | T47: ='GRILLE Cat B CN EXT'!D13 -> 389
A49: Soit un gain net mensuel de : | G49: =I40*C46*0.8315 -> 128.581497 | R49: ='GRILLE Cat B CN EXT'!B15 -> 4 | S49: ='GRILLE Cat B CN EXT'!C15 -> 48 | T49: ='GRILLE Cat B CN EXT'!D15 -> 409
R51: ='GRILLE Cat B CN EXT'!B17 -> 5 | S51: ='GRILLE Cat B CN EXT'!C17 -> 48 | T51: ='GRILLE Cat B CN EXT'!D17 -> 429
R53: ='GRILLE Cat B CN EXT'!B19 -> 6 | S53: ='GRILLE Cat B CN EXT'!C19 -> 48 | T53: ='GRILLE Cat B CN EXT'!D19 -> 462
A54: Vos représentant-e-s SUD Santé Sociaux | I54: =RECAPITULATIF!D21 -> 35 | K54: sont à votre disposition
A55: pour tous renseignements complémentaires au poste : | M55: =RECAPITULATIF!D17 -> 2886 | R55: ='GRILLE Cat B CN EXT'!B21 -> 7 | S55: ='GRILLE Cat B CN EXT'!C21 -> 48 | T55: ='GRILLE Cat B CN EXT'!D21 -> 495
R57: ='GRILLE Cat B CN EXT'!B23 -> 8 | S57: ='GRILLE Cat B CN EXT'!C23 -> 0 | T57: ='GRILLE Cat B CN EXT'!D23 -> 534
R59: ='GRILLE Cat B CN EXT'!B25 -> 0 | S59: ='GRILLE Cat B CN EXT'!C25 -> 0 | T59: ='GRILLE Cat B CN EXT'!D25 -> 0
A60: Recevez toutes nos salutations.
R61: ='GRILLE Cat B CN EXT'!B27 -> 0 | S61: ='GRILLE Cat B CN EXT'!C27 -> 0 | T61: ='GRILLE Cat B CN EXT'!D27 -> 0
A63: =RECAPITULATIF!B5 -> Madame Françoise LAUTROU et Madame PERROT Anne
A65: SUD Santé Sociaux | E65: =RECAPITULATIF!D21 -> 35
A70: Tél : | B70: =RECAPITULATIF!D19 -> 299212886
A71: Mél : | C71: =RECAPITULATIF!C23 -> sudsante@ch-stmalo.fr
A72: =RECAPITULATIF!B25 -> Site Départemental Sud | F72: =RECAPITULATIF!D25 -> http://www.sudsantesociaux35.org

Sheet Cat B CN EXT Echelon 8
G2: Commission Administrative
G3: Paritaire | M3: =RECAPITULATIF!D7 -> Locale
M9: Mme, Mr :
M11: Grade :
M13: Service :
A16: Votre ou vos représentant-e-s du personnel
A18: =RECAPITULATIF!B5 -> Madame Françoise LAUTROU et Madame PERROT Anne
A20: SUD Santé Sociaux | E20: =RECAPITULATIF!D21 -> 35 | F20: du:
A22: =RECAPITULATIF!B2 -> Centre Hospitalier de Saint Malo
A24: siégeant auprès de la CAP | F24: =RECAPITULATIF!D7 -> Locale | J24: du : | K24: =RECAPITULATIF!D11 -> 2019-06-14 | N24: vous informe de votre :
F27: AVANCEMENT D’ECHELON
A33: Vous passez à l’échelon : | F33: ='GRILLE Cat B CN EXT'!B23 -> 8 | H33: Indice Majoré : | L33: ='GRILLE Cat B CN EXT'!D23 -> 534
A36: Date d'effet : | F36: / | H36: / | I36: =RECAPITULATIF!D9 -> 2019 | R36: ='GRILLE Cat B CN EXT'!B2 -> Catégorie B Classe Normale Extinction Infirmier-ère D.E., Manipulateur d'Electroradiologie Médicale, Masseur-Kinésithérapeute, Ergothérapeute, Psychomotricien, Orthophoniste, Pédicure-Podologue
A40: Ce qui représente un gain mensuel de : | I40: ='GRILLE Cat B CN EXT'!D23-'GRILLE Cat B CN EXT'!D21 -> 39 | K40: points d'indice.
R41: ='GRILLE Cat B CN EXT'!B7 -> Echelon | S41: ='GRILLE Cat B CN EXT'!C7 -> Durée (en mois) | T41: ='GRILLE Cat B CN EXT'!D7 -> Indice Majoré
A43: Pour information, la valeur brute du point d'indice | R43: ='GRILLE Cat B CN EXT'!B9 -> 1 | S43: ='GRILLE Cat B CN EXT'!C9 -> 24 | T43: ='GRILLE Cat B CN EXT'!D9 -> 356
R45: ='GRILLE Cat B CN EXT'!B11 -> 2 | S45: ='GRILLE Cat B CN EXT'!C11 -> 36 | T45: ='GRILLE Cat B CN EXT'!D11 -> 371
A46: est de | C46: =RECAPITULATIF!D13 -> 4.686 | E46: au | F46: =RECAPITULATIF!D15 -> 2019-01-01
R47: ='GRILLE Cat B CN EXT'!B13 -> 3 | S47: ='GRILLE Cat B CN EXT'!C13 -> 36 | T47: ='GRILLE Cat B CN EXT'!D13 -> 389
A49: Soit un gain net mensuel de : | G49: =I40*C46*0.8315 -> 151.959951 | R49: ='GRILLE Cat B CN EXT'!B15 -> 4 | S49: ='GRILLE Cat B CN EXT'!C15 -> 48 | T49: ='GRILLE Cat B CN EXT'!D15 -> 409
R51: ='GRILLE Cat B CN EXT'!B17 -> 5 | S51: ='GRILLE Cat B CN EXT'!C17 -> 48 | T51: ='GRILLE Cat B CN EXT'!D17 -> 429
R53: ='GRILLE Cat B CN EXT'!B19 -> 6 | S53: ='GRILLE Cat B CN EXT'!C19 -> 48 | T53: ='GRILLE Cat B CN EXT'!D19 -> 462
A54: Vos représentant-e-s SUD Santé Sociaux | I54: =RECAPITULATIF!D21 -> 35 | K54: sont à votre disposition
A55: pour tous renseignements complémentaires au poste : | M55: =RECAPITULATIF!D17 -> 2886 | R55: ='GRILLE Cat B CN EXT'!B21 -> 7 | S55: ='GRILLE Cat B CN EXT'!C21 -> 48 | T55: ='GRILLE Cat B CN EXT'!D21 -> 495
R57: ='GRILLE Cat B CN EXT'!B23 -> 8 | S57: ='GRILLE Cat B CN EXT'!C23 -> 0 | T57: ='GRILLE Cat B CN EXT'!D23 -> 534
R59: ='GRILLE Cat B CN EXT'!B25 -> 0 | S59: ='GRILLE Cat B CN EXT'!C25 -> 0 | T59: ='GRILLE Cat B CN EXT'!D25 -> 0
A60: Recevez toutes nos salutations.
R61: ='GRILLE Cat B CN EXT'!B27 -> 0 | S61: ='GRILLE Cat B CN EXT'!C27 -> 0 | T61: ='GRILLE Cat B CN EXT'!D27 -> 0
A63: =RECAPITULATIF!B5 -> Madame Françoise LAUTROU et Madame PERROT Anne
A65: SUD Santé Sociaux | E65: =RECAPITULATIF!D21 -> 35
A70: Tél : | B70: =RECAPITULATIF!D19 -> 299212886
A71: Mél : | C71: =RECAPITULATIF!C23 -> sudsante@ch-stmalo.fr
A72: =RECAPITULATIF!B25 -> Site Départemental Sud | F72: =RECAPITULATIF!D25 -> http://www.sudsantesociaux35.org

Sheet GRILLE Cat B CS EXT
B2: Catégorie B Classe Supérieure Extinction Infirmier-ère D.E., Manipulateur d'Electroradiologie Médicale, Masseur-Kinésithérapeute, Ergothérapeute, Psychomotricien, Orthophoniste, Pédicure-Podologue
B7: Echelon | C7: Durée (en mois) | D7: Indice Majoré
B9: 1 | C9: 12 | D9: 445
B11: 2 | C11: 24 | D11: 461
B13: 3 | C13: 36 | D13: 485
B15: 4 | C15: 36 | D15: 510
B17: 5 | C17: 48 | D17: 534
B19: 6 | C19: 36 | D19: 555
B21: 7 | C21: 48 | D21: 569
B23: 8 | D23: 587

Sheet IMP GRILLE Cat B CS EXT
B2: 1) Imprimez autant de feuilles que d'agents concernés.
B4: 2) Pliez en 3 au niveau du repère, deux petits traits noirs.
B6: 3) Inserrez ce courrier dans une enveloppe 110 X 220 à fenêtre.

Sheet Cat B CS EXT Echelon 2
G2: Commission Administrative
G3: Paritaire | M3: =RECAPITULATIF!D7 -> Locale
M9: Mme, Mr :
M11: Grade :
M13: Service :
A16: Votre ou vos représentant-e-s du personnel
A18: =RECAPITULATIF!B5 -> Madame Françoise LAUTROU et Madame PERROT Anne
A20: SUD Santé Sociaux | E20: =RECAPITULATIF!D21 -> 35 | F20: du:
A22: =RECAPITULATIF!B2 -> Centre Hospitalier de Saint Malo
A24: siégeant auprès de la CAP | F24: =RECAPITULATIF!D7 -> Locale | J24: du : | K24: =RECAPITULATIF!D11 -> 2019-06-14 | N24: vous informe de votre :
F27: AVANCEMENT D’ECHELON
A33: Vous passez à l’échelon : | F33: ='GRILLE Cat B CS EXT'!B11 -> 2 | H33: Indice Majoré : | L33: ='GRILLE Cat B CS EXT'!D11 -> 461
A36: Date d'effet : | F36: / | H36: / | I36: =RECAPITULATIF!D9 -> 2019 | R36: ='GRILLE Cat B CS EXT'!B2 -> Catégorie B Classe Supérieure Extinction Infirmier-ère D.E., Manipulateur d'Electroradiologie Médicale, Masseur-Kinésithérapeute, Ergothérapeute, Psychomotricien, Orthophoniste, Pédicure-Podologue
A40: Ce qui représente un gain mensuel de : | I40: ='GRILLE Cat B CS EXT'!D11-'GRILLE Cat B CS EXT'!D9 -> 16 | K40: points d'indice.
R41: ='GRILLE Cat B CS EXT'!B7 -> Echelon | S41: ='GRILLE Cat B CS EXT'!C7 -> Durée (en mois) | T41: ='GRILLE Cat B CS EXT'!D7 -> Indice Majoré
A43: Pour information, la valeur brute du point d'indice | R43: ='GRILLE Cat B CS EXT'!B9 -> 1 | S43: ='GRILLE Cat B CS EXT'!C9 -> 12 | T43: ='GRILLE Cat B CS EXT'!D9 -> 445
R45: ='GRILLE Cat B CS EXT'!B11 -> 2 | S45: ='GRILLE Cat B CS EXT'!C11 -> 24 | T45: ='GRILLE Cat B CS EXT'!D11 -> 461
A46: est de | C46: =RECAPITULATIF!D13 -> 4.686 | E46: au | F46: =RECAPITULATIF!D15 -> 2019-01-01
R47: ='GRILLE Cat B CS EXT'!B13 -> 3 | S47: ='GRILLE Cat B CS EXT'!C13 -> 36 | T47: ='GRILLE Cat B CS EXT'!D13 -> 485
A49: Soit un gain net mensuel de : | G49: =I40*C46*0.8315 -> 62.342544 | R49: ='GRILLE Cat B CS EXT'!B15 -> 4 | S49: ='GRILLE Cat B CS EXT'!C15 -> 36 | T49: ='GRILLE Cat B CS EXT'!D15 -> 510
R51: ='GRILLE Cat B CS EXT'!B17 -> 5 | S51: ='GRILLE Cat B CS EXT'!C17 -> 48 | T51: ='GRILLE Cat B CS EXT'!D17 -> 534
R53: ='GRILLE Cat B CS EXT'!B19 -> 6 | S53: ='GRILLE Cat B CS EXT'!C19 -> 36 | T53: ='GRILLE Cat B CS EXT'!D19 -> 555
A54: Vos représentant-e-s SUD Santé Sociaux | I54: =RECAPITULATIF!D21 -> 35 | K54: sont à votre disposition
A55: pour tous renseignements complémentaires au poste : | M55: =RECAPITULATIF!D17 -> 2886 | R55: ='GRILLE Cat B CS EXT'!B21 -> 7 | S55: ='GRILLE Cat B CS EXT'!C21 -> 48 | T55: ='GRILLE Cat B CS EXT'!D21 -> 569
R57: ='GRILLE Cat B CS EXT'!B23 -> 8 | S57: ='GRILLE Cat B CS EXT'!C23 -> 0 | T57: ='GRILLE Cat B CS EXT'!D23 -> 587
A60: Recevez toutes nos salutations.
A63: =RECAPITULATIF!B5 -> Madame Françoise LAUTROU et Madame PERROT Anne
A65: SUD Santé Sociaux | E65: =RECAPITULATIF!D21 -> 35
A70: Tél : | B70: =RECAPITULATIF!D19 -> 299212886
A71: Mél : | C71: =RECAPITULATIF!C23 -> sudsante@ch-stmalo.fr
A72: =RECAPITULATIF!B25 -> Site Départemental Sud | F72: =RECAPITULATIF!D25 -> http://www.sudsantesociaux35.org

Sheet Cat B CS EXT Echelon 3
G2: Commission Administrative
G3: Paritaire | M3: =RECAPITULATIF!D7 -> Locale
M9: Mme, Mr :
M11: Grade :
M13: Service :
A16: Votre ou vos représentant-e-s du personnel
A18: =RECAPITULATIF!B5 -> Madame Françoise LAUTROU et Madame PERROT Anne
A20: SUD Santé Sociaux | E20: =RECAPITULATIF!D21 -> 35 | F20: du:
A22: =RECAPITULATIF!B2 -> Centre Hospitalier de Saint Malo
A24: siégeant auprès de la CAP | F24: =RECAPITULATIF!D7 -> Locale | J24: du : | K24: =RECAPITULATIF!D11 -> 2019-06-14 | N24: vous informe de votre :
F27: AVANCEMENT D’ECHELON
A33: Vous passez à l’échelon : | F33: ='GRILLE Cat B CS EXT'!B13 -> 3 | H33: Indice Majoré : | L33: ='GRILLE Cat B CS EXT'!D13 -> 485
A36: Date d'effet : | F36: / | H36: / | I36: =RECAPITULATIF!D9 -> 2019 | R36: ='GRILLE Cat B CS EXT'!B2 -> Catégorie B Classe Supérieure Extinction Infirmier-ère D.E., Manipulateur d'Electroradiologie Médicale, Masseur-Kinésithérapeute, Ergothérapeute, Psychomotricien, Orthophoniste, Pédicure-Podologue
A40: Ce qui représente un gain mensuel de : | I40: ='GRILLE Cat B CS EXT'!D13-'GRILLE Cat B CS EXT'!D11 -> 24 | K40: points d'indice.
R41: ='GRILLE Cat B CS EXT'!B7 -> Echelon | S41: ='GRILLE Cat B CS EXT'!C7 -> Durée (en mois) | T41: ='GRILLE Cat B CS EXT'!D7 -> Indice Majoré
A43: Pour information, la valeur brute du point d'indice | R43: ='GRILLE Cat B CS EXT'!B9 -> 1 | S43: ='GRILLE Cat B CS EXT'!C9 -> 12 | T43: ='GRILLE Cat B CS EXT'!D9 -> 445
R45: ='GRILLE Cat B CS EXT'!B11 -> 2 | S45: ='GRILLE Cat B CS EXT'!C11 -> 24 | T45: ='GRILLE Cat B CS EXT'!D11 -> 461
A46: est de | C46: =RECAPITULATIF!D13 -> 4.686 | E46: au | F46: =RECAPITULATIF!D15 -> 2019-01-01
R47: ='GRILLE Cat B CS EXT'!B13 -> 3 | S47: ='GRILLE Cat B CS EXT'!C13 -> 36 | T47: ='GRILLE Cat B CS EXT'!D13 -> 485
A49: Soit un gain net mensuel de : | G49: =I40*C46*0.8315 -> 93.513816 | R49: ='GRILLE Cat B CS EXT'!B15 -> 4 | S49: ='GRILLE Cat B CS EXT'!C15 -> 36 | T49: ='GRILLE Cat B CS EXT'!D15 -> 510
R51: ='GRILLE Cat B CS EXT'!B17 -> 5 | S51: ='GRILLE Cat B CS EXT'!C17 -> 48 | T51: ='GRILLE Cat B CS EXT'!D17 -> 534
R53: ='GRILLE Cat B CS EXT'!B19 -> 6 | S53: ='GRILLE Cat B CS EXT'!C19 -> 36 | T53: ='GRILLE Cat B CS EXT'!D19 -> 555
A54: Vos représentant-e-s SUD Santé Sociaux | I54: =RECAPITULATIF!D21 -> 35 | K54: sont à votre disposition
A55: pour tous renseignements complémentaires au poste : | M55: =RECAPITULATIF!D17 -> 2886 | R55: ='GRILLE Cat B CS EXT'!B21 -> 7 | S55: ='GRILLE Cat B CS EXT'!C21 -> 48 | T55: ='GRILLE Cat B CS EXT'!D21 -> 569
R57: ='GRILLE Cat B CS EXT'!B23 -> 8 | S57: ='GRILLE Cat B CS EXT'!C23 -> 0 | T57: ='GRILLE Cat B CS EXT'!D23 -> 587
A60: Recevez toutes nos salutations.
A63: =RECAPITULATIF!B5 -> Madame Françoise LAUTROU et Madame PERROT Anne
A65: SUD Santé Sociaux | E65: =RECAPITULATIF!D21 -> 35
A70: Tél : | B70: =RECAPITULATIF!D19 -> 299212886
A71: Mél : | C71: =RECAPITULATIF!C23 -> sudsante@ch-stmalo.fr
A72: =RECAPITULATIF!B25 -> Site Départemental Sud | F72: =RECAPITULATIF!D25 -> http://www.sudsantesociaux35.org

Sheet Cat B CS EXT Echelon 4
G2: Commission Administrative
G3: Paritaire | M3: =RECAPITULATIF!D7 -> Locale
M9: Mme, Mr :
M11: Grade :
M13: Service :
A16: Votre ou vos représentant-e-s du personnel
A18: =RECAPITULATIF!B5 -> Madame Françoise LAUTROU et Madame PERROT Anne
A20: SUD Santé Sociaux | E20: =RECAPITULATIF!D21 -> 35 | F20: du:
A22: =RECAPITULATIF!B2 -> Centre Hospitalier de Saint Malo
A24: siégeant auprès de la CAP | F24: =RECAPITULATIF!D7 -> Locale | J24: du : | K24: =RECAPITULATIF!D11 -> 2019-06-14 | N24: vous informe de votre :
F27: AVANCEMENT D’ECHELON
A33: Vous passez à l’échelon : | F33: ='GRILLE Cat B CS EXT'!B15 -> 4 | H33: Indice Majoré : | L33: ='GRILLE Cat B CS EXT'!D15 -> 510
A36: Date d'effet : | F36: / | H36: / | I36: =RECAPITULATIF!D9 -> 2019 | R36: ='GRILLE Cat B CS EXT'!B2 -> Catégorie B Classe Supérieure Extinction Infirmier-ère D.E., Manipulateur d'Electroradiologie Médicale, Masseur-Kinésithérapeute, Ergothérapeute, Psychomotricien, Orthophoniste, Pédicure-Podologue
A40: Ce qui représente un gain mensuel de : | I40: ='GRILLE Cat B CS EXT'!D15-'GRILLE Cat B CS EXT'!D13 -> 25 | K40: points d'indice.
R41: ='GRILLE Cat B CS EXT'!B7 -> Echelon | S41: ='GRILLE Cat B CS EXT'!C7 -> Durée (en mois) | T41: ='GRILLE Cat B CS EXT'!D7 -> Indice Majoré
A43: Pour information, la valeur brute du point d'indice | R43: ='GRILLE Cat B CS EXT'!B9 -> 1 | S43: ='GRILLE Cat B CS EXT'!C9 -> 12 | T43: ='GRILLE Cat B CS EXT'!D9 -> 445
R45: ='GRILLE Cat B CS EXT'!B11 -> 2 | S45: ='GRILLE Cat B CS EXT'!C11 -> 24 | T45: ='GRILLE Cat B CS EXT'!D11 -> 461
A46: est de | C46: =RECAPITULATIF!D13 -> 4.686 | E46: au | F46: =RECAPITULATIF!D15 -> 2019-01-01
R47: ='GRILLE Cat B CS EXT'!B13 -> 3 | S47: ='GRILLE Cat B CS EXT'!C13 -> 36 | T47: ='GRILLE Cat B CS EXT'!D13 -> 485
A49: Soit un gain net mensuel de : | G49: =I40*C46*0.8315 -> 97.410225 | R49: ='GRILLE Cat B CS EXT'!B15 -> 4 | S49: ='GRILLE Cat B CS EXT'!C15 -> 36 | T49: ='GRILLE Cat B CS EXT'!D15 -> 510
R51: ='GRILLE Cat B CS EXT'!B17 -> 5 | S51: ='GRILLE Cat B CS EXT'!C17 -> 48 | T51: ='GRILLE Cat B CS EXT'!D17 -> 534
R53: ='GRILLE Cat B CS EXT'!B19 -> 6 | S53: ='GRILLE Cat B CS EXT'!C19 -> 36 | T53: ='GRILLE Cat B CS EXT'!D19 -> 555
A54: Vos représentant-e-s SUD Santé Sociaux | I54: =RECAPITULATIF!D21 -> 35 | K54: sont à votre disposition
A55: pour tous renseignements complémentaires au poste : | M55: =RECAPITULATIF!D17 -> 2886 | R55: ='GRILLE Cat B CS EXT'!B21 -> 7 | S55: ='GRILLE Cat B CS EXT'!C21 -> 48 | T55: ='GRILLE Cat B CS EXT'!D21 -> 569
R57: ='GRILLE Cat B CS EXT'!B23 -> 8 | S57: ='GRILLE Cat B CS EXT'!C23 -> 0 | T57: ='GRILLE Cat B CS EXT'!D23 -> 587
A60: Recevez toutes nos salutations.
A63: =RECAPITULATIF!B5 -> Madame Françoise LAUTROU et Madame PERROT Anne
A65: SUD Santé Sociaux | E65: =RECAPITULATIF!D21 -> 35
A70: Tél : | B70: =RECAPITULATIF!D19 -> 299212886
A71: Mél : | C71: =RECAPITULATIF!C23 -> sudsante@ch-stmalo.fr
A72: =RECAPITULATIF!B25 -> Site Départemental Sud | F72: =RECAPITULATIF!D25 -> http://www.sudsantesociaux35.org

Sheet Cat B CS EXT Echelon 5
G2: Commission Administrative
G3: Paritaire | M3: =RECAPITULATIF!D7 -> Locale
M9: Mme, Mr :
M11: Grade :
M13: Service :
A16: Votre ou vos représentant-e-s du personnel
A18: =RECAPITULATIF!B5 -> Madame Françoise LAUTROU et Madame PERROT Anne
A20: SUD Santé Sociaux | E20: =RECAPITULATIF!D21 -> 35 | F20: du:
A22: =RECAPITULATIF!B2 -> Centre Hospitalier de Saint Malo
A24: siégeant auprès de la CAP | F24: =RECAPITULATIF!D7 -> Locale | J24: du : | K24: =RECAPITULATIF!D11 -> 2019-06-14 | N24: vous informe de votre :
F27: AVANCEMENT D’ECHELON
A33: Vous passez à l’échelon : | F33: ='GRILLE Cat B CS EXT'!B17 -> 5 | H33: Indice Majoré : | L33: ='GRILLE Cat B CS EXT'!D17 -> 534
A36: Date d'effet : | F36: / | H36: / | I36: =RECAPITULATIF!D9 -> 2019 | R36: ='GRILLE Cat B CS EXT'!B2 -> Catégorie B Classe Supérieure Extinction Infirmier-ère D.E., Manipulateur d'Electroradiologie Médicale, Masseur-Kinésithérapeute, Ergothérapeute, Psychomotricien, Orthophoniste, Pédicure-Podologue
A40: Ce qui représente un gain mensuel de : | I40: ='GRILLE Cat B CS EXT'!D17-'GRILLE Cat B CS EXT'!D15 -> 24 | K40: points d'indice.
R41: ='GRILLE Cat B CS EXT'!B7 -> Echelon | S41: ='GRILLE Cat B CS EXT'!C7 -> Durée (en mois) | T41: ='GRILLE Cat B CS EXT'!D7 -> Indice Majoré
A43: Pour information, la valeur brute du point d'indice | R43: ='GRILLE Cat B CS EXT'!B9 -> 1 | S43: ='GRILLE Cat B CS EXT'!C9 -> 12 | T43: ='GRILLE Cat B CS EXT'!D9 -> 445
R45: ='GRILLE Cat B CS EXT'!B11 -> 2 | S45: ='GRILLE Cat B CS EXT'!C11 -> 24 | T45: ='GRILLE Cat B CS EXT'!D11 -> 461
A46: est de | C46: =RECAPITULATIF!D13 -> 4.686 | E46: au | F46: =RECAPITULATIF!D15 -> 2019-01-01
R47: ='GRILLE Cat B CS EXT'!B13 -> 3 | S47: ='GRILLE Cat B CS EXT'!C13 -> 36 | T47: ='GRILLE Cat B CS EXT'!D13 -> 485
A49: Soit un gain net mensuel de : | G49: =I40*C46*0.8315 -> 93.513816 | R49: ='GRILLE Cat B CS EXT'!B15 -> 4 | S49: ='GRILLE Cat B CS EXT'!C15 -> 36 | T49: ='GRILLE Cat B CS EXT'!D15 -> 510
R51: ='GRILLE Cat B CS EXT'!B17 -> 5 | S51: ='GRILLE Cat B CS EXT'!C17 -> 48 | T51: ='GRILLE Cat B CS EXT'!D17 -> 534
R53: ='GRILLE Cat B CS EXT'!B19 -> 6 | S53: ='GRILLE Cat B CS EXT'!C19 -> 36 | T53: ='GRILLE Cat B CS EXT'!D19 -> 555
A54: Vos représentant-e-s SUD Santé Sociaux | I54: =RECAPITULATIF!D21 -> 35 | K54: sont à votre disposition
A55: pour tous renseignements complémentaires au poste : | M55: =RECAPITULATIF!D17 -> 2886 | R55: ='GRILLE Cat B CS EXT'!B21 -> 7 | S55: ='GRILLE Cat B CS EXT'!C21 -> 48 | T55: ='GRILLE Cat B CS EXT'!D21 -> 569
R57: ='GRILLE Cat B CS EXT'!B23 -> 8 | S57: ='GRILLE Cat B CS EXT'!C23 -> 0 | T57: ='GRILLE Cat B CS EXT'!D23 -> 587
A60: Recevez toutes nos salutations.
A63: =RECAPITULATIF!B5 -> Madame Françoise LAUTROU et Madame PERROT Anne
A65: SUD Santé Sociaux | E65: =RECAPITULATIF!D21 -> 35
A70: Tél : | B70: =RECAPITULATIF!D19 -> 299212886
A71: Mél : | C71: =RECAPITULATIF!C23 -> sudsante@ch-stmalo.fr
A72: =RECAPITULATIF!B25 -> Site Départemental Sud | F72: =RECAPITULATIF!D25 -> http://www.sudsantesociaux35.org

Sheet Cat B CS EXT Echelon 6
G2: Commission Administrative
G3: Paritaire | M3: =RECAPITULATIF!D7 -> Locale
M9: Mme, Mr :
M11: Grade :
M13: Service :
A16: Votre ou vos représentant-e-s du personnel
A18: =RECAPITULATIF!B5 -> Madame Françoise LAUTROU et Madame PERROT Anne
A20: SUD Santé Sociaux | E20: =RECAPITULATIF!D21 -> 35 | F20: du:
A22: =RECAPITULATIF!B2 -> Centre Hospitalier de Saint Malo
A24: siégeant auprès de la CAP | F24: =RECAPITULATIF!D7 -> Locale | J24: du : | K24: =RECAPITULATIF!D11 -> 2019-06-14 | N24: vous informe de votre :
F27: AVANCEMENT D’ECHELON
A33: Vous passez à l’échelon : | F33: ='GRILLE Cat B CN EXT'!B19 -> 6 | H33: Indice Majoré : | L33: ='GRILLE Cat B CN EXT'!D19 -> 462
A36: Date d'effet : | F36: / | H36: / | I36: =RECAPITULATIF!D9 -> 2019 | R36: ='GRILLE Cat B CS EXT'!B2 -> Catégorie B Classe Supérieure Extinction Infirmier-ère D.E., Manipulateur d'Electroradiologie Médicale, Masseur-Kinésithérapeute, Ergothérapeute, Psychomotricien, Orthophoniste, Pédicure-Podologue
A40: Ce qui représente un gain mensuel de : | I40: ='GRILLE Cat B CN EXT'!D19-'GRILLE Cat B CN EXT'!D17 -> 33 | K40: points d'indice.
R41: ='GRILLE Cat B CS EXT'!B7 -> Echelon | S41: ='GRILLE Cat B CS EXT'!C7 -> Durée (en mois) | T41: ='GRILLE Cat B CS EXT'!D7 -> Indice Majoré
A43: Pour information, la valeur brute du point d'indice | R43: ='GRILLE Cat B CS EXT'!B9 -> 1 | S43: ='GRILLE Cat B CS EXT'!C9 -> 12 | T43: ='GRILLE Cat B CS EXT'!D9 -> 445
R45: ='GRILLE Cat B CS EXT'!B11 -> 2 | S45: ='GRILLE Cat B CS EXT'!C11 -> 24 | T45: ='GRILLE Cat B CS EXT'!D11 -> 461
A46: est de | C46: =RECAPITULATIF!D13 -> 4.686 | E46: au | F46: =RECAPITULATIF!D15 -> 2019-01-01
R47: ='GRILLE Cat B CS EXT'!B13 -> 3 | S47: ='GRILLE Cat B CS EXT'!C13 -> 36 | T47: ='GRILLE Cat B CS EXT'!D13 -> 485
A49: Soit un gain net mensuel de : | G49: =I40*C46*0.8315 -> 128.581497 | R49: ='GRILLE Cat B CS EXT'!B15 -> 4 | S49: ='GRILLE Cat B CS EXT'!C15 -> 36 | T49: ='GRILLE Cat B CS EXT'!D15 -> 510
R51: ='GRILLE Cat B CS EXT'!B17 -> 5 | S51: ='GRILLE Cat B CS EXT'!C17 -> 48 | T51: ='GRILLE Cat B CS EXT'!D17 -> 534
R53: ='GRILLE Cat B CS EXT'!B19 -> 6 | S53: ='GRILLE Cat B CS EXT'!C19 -> 36 | T53: ='GRILLE Cat B CS EXT'!D19 -> 555
A54: Vos représentant-e-s SUD Santé Sociaux | I54: =RECAPITULATIF!D21 -> 35 | K54: sont à votre disposition
A55: pour tous renseignements complémentaires au poste : | M55: =RECAPITULATIF!D17 -> 2886 | R55: ='GRILLE Cat B CS EXT'!B21 -> 7 | S55: ='GRILLE Cat B CS EXT'!C21 -> 48 | T55: ='GRILLE Cat B CS EXT'!D21 -> 569
R57: ='GRILLE Cat B CS EXT'!B23 -> 8 | S57: ='GRILLE Cat B CS EXT'!C23 -> 0 | T57: ='GRILLE Cat B CS EXT'!D23 -> 587
R59: ='GRILLE Cat B CN EXT'!B25 -> 0 | S59: ='GRILLE Cat B CN EXT'!C25 -> 0 | T59: ='GRILLE Cat B CN EXT'!D25 -> 0
A60: Recevez toutes nos salutations.
R61: ='GRILLE Cat B CN EXT'!B27 -> 0 | S61: ='GRILLE Cat B CN EXT'!C27 -> 0 | T61: ='GRILLE Cat B CN EXT'!D27 -> 0
A63: =RECAPITULATIF!B5 -> Madame Françoise LAUTROU et Madame PERROT Anne
A65: SUD Santé Sociaux | E65: =RECAPITULATIF!D21 -> 35
A70: Tél : | B70: =RECAPITULATIF!D19 -> 299212886
A71: Mél : | C71: =RECAPITULATIF!C23 -> sudsante@ch-stmalo.fr
A72: =RECAPITULATIF!B25 -> Site Départemental Sud | F72: =RECAPITULATIF!D25 -> http://www.sudsantesociaux35.org

Sheet Cat B CS EXT Echelon 7
G2: Commission Administrative
G3: Paritaire | M3: =RECAPITULATIF!D7 -> Locale
M9: Mme, Mr :
M11: Grade :
M13: Service :
A16: Votre ou vos représentant-e-s du personnel
A18: =RECAPITULATIF!B5 -> Madame Françoise LAUTROU et Madame PERROT Anne
A20: SUD Santé Sociaux | E20: =RECAPITULATIF!D21 -> 35 | F20: du:
A22: =RECAPITULATIF!B2 -> Centre Hospitalier de Saint Malo
A24: siégeant auprès de la CAP | F24: =RECAPITULATIF!D7 -> Locale | J24: du : | K24: =RECAPITULATIF!D11 -> 2019-06-14 | N24: vous informe de votre :
F27: AVANCEMENT D’ECHELON
A33: Vous passez à l’échelon : | F33: ='GRILLE Cat B CN EXT'!B21 -> 7 | H33: Indice Majoré : | L33: ='GRILLE Cat B CN EXT'!D21 -> 495
A36: Date d'effet : | F36: / | H36: / | I36: =RECAPITULATIF!D9 -> 2019 | R36: ='GRILLE Cat B CS EXT'!B2 -> Catégorie B Classe Supérieure Extinction Infirmier-ère D.E., Manipulateur d'Electroradiologie Médicale, Masseur-Kinésithérapeute, Ergothérapeute, Psychomotricien, Orthophoniste, Pédicure-Podologue
A40: Ce qui représente un gain mensuel de : | I40: ='GRILLE Cat B CN EXT'!D21-'GRILLE Cat B CN EXT'!D19 -> 33 | K40: points d'indice.
R41: ='GRILLE Cat B CS EXT'!B7 -> Echelon | S41: ='GRILLE Cat B CS EXT'!C7 -> Durée (en mois) | T41: ='GRILLE Cat B CS EXT'!D7 -> Indice Majoré
A43: Pour information, la valeur brute du point d'indice | R43: ='GRILLE Cat B CS EXT'!B9 -> 1 | S43: ='GRILLE Cat B CS EXT'!C9 -> 12 | T43: ='GRILLE Cat B CS EXT'!D9 -> 445
R45: ='GRILLE Cat B CS EXT'!B11 -> 2 | S45: ='GRILLE Cat B CS EXT'!C11 -> 24 | T45: ='GRILLE Cat B CS EXT'!D11 -> 461
A46: est de | C46: =RECAPITULATIF!D13 -> 4.686 | E46: au | F46: =RECAPITULATIF!D15 -> 2019-01-01
R47: ='GRILLE Cat B CS EXT'!B13 -> 3 | S47: ='GRILLE Cat B CS EXT'!C13 -> 36 | T47: ='GRILLE Cat B CS EXT'!D13 -> 485
A49: Soit un gain net mensuel de : | G49: =I40*C46*0.8315 -> 128.581497 | R49: ='GRILLE Cat B CS EXT'!B15 -> 4 | S49: ='GRILLE Cat B CS EXT'!C15 -> 36 | T49: ='GRILLE Cat B CS EXT'!D15 -> 510
R51: ='GRILLE Cat B CS EXT'!B17 -> 5 | S51: ='GRILLE Cat B CS EXT'!C17 -> 48 | T51: ='GRILLE Cat B CS EXT'!D17 -> 534
R53: ='GRILLE Cat B CS EXT'!B19 -> 6 | S53: ='GRILLE Cat B CS EXT'!C19 -> 36 | T53: ='GRILLE Cat B CS EXT'!D19 -> 555
A54: Vos représentant-e-s SUD Santé Sociaux | I54: =RECAPITULATIF!D21 -> 35 | K54: sont à votre disposition
A55: pour tous renseignements complémentaires au poste : | M55: =RECAPITULATIF!D17 -> 2886 | R55: ='GRILLE Cat B CS EXT'!B21 -> 7 | S55: ='GRILLE Cat B CS EXT'!C21 -> 48 | T55: ='GRILLE Cat B CS EXT'!D21 -> 569
R57: ='GRILLE Cat B CS EXT'!B23 -> 8 | S57: ='GRILLE Cat B CS EXT'!C23 -> 0 | T57: ='GRILLE Cat B CS EXT'!D23 -> 587
R59: ='GRILLE Cat B CN EXT'!B25 -> 0 | S59: ='GRILLE Cat B CN EXT'!C25 -> 0 | T59: ='GRILLE Cat B CN EXT'!D25 -> 0
A60: Recevez toutes nos salutations.
R61: ='GRILLE Cat B CN EXT'!B27 -> 0 | S61: ='GRILLE Cat B CN EXT'!C27 -> 0 | T61: ='GRILLE Cat B CN EXT'!D27 -> 0
A63: =RECAPITULATIF!B5 -> Madame Françoise LAUTROU et Madame PERROT Anne
A65: SUD Santé Sociaux | E65: =RECAPITULATIF!D21 -> 35
A70: Tél : | B70: =RECAPITULATIF!D19 -> 299212886
A71: Mél : | C71: =RECAPITULATIF!C23 -> sudsante@ch-stmalo.fr
A72: =RECAPITULATIF!B25 -> Site Départemental Sud | F72: =RECAPITULATIF!D25 -> http://www.sudsantesociaux35.org

Sheet Cat B CS EXT Echelon 8
G2: Commission Administrative
G3: Paritaire | M3: =RECAPITULATIF!D7 -> Locale
M9: Mme, Mr :
M11: Grade :
M13: Service :
A16: Votre ou vos représentant-e-s du personnel
A18: =RECAPITULATIF!B5 -> Madame Françoise LAUTROU et Madame PERROT Anne
A20: SUD Santé Sociaux | E20: =RECAPITULATIF!D21 -> 35 | F20: du:
A22: =RECAPITULATIF!B2 -> Centre Hospitalier de Saint Malo
A24: siégeant auprès de la CAP | F24: =RECAPITULATIF!D7 -> Locale | J24: du : | K24: =RECAPITULATIF!D11 -> 2019-06-14 | N24: vous informe de votre :
F27: AVANCEMENT D’ECHELON
A33: Vous passez à l’échelon : | F33: ='GRILLE Cat B CN EXT'!B23 -> 8 | H33: Indice Majoré : | L33: ='GRILLE Cat B CN EXT'!D23 -> 534
A36: Date d'effet : | F36: / | H36: / | I36: =RECAPITULATIF!D9 -> 2019 | R36: ='GRILLE Cat B CS EXT'!B2 -> Catégorie B Classe Supérieure Extinction Infirmier-ère D.E., Manipulateur d'Electroradiologie Médicale, Masseur-Kinésithérapeute, Ergothérapeute, Psychomotricien, Orthophoniste, Pédicure-Podologue
A40: Ce qui représente un gain mensuel de : | I40: ='GRILLE Cat B CN EXT'!D23-'GRILLE Cat B CN EXT'!D21 -> 39 | K40: points d'indice.
R41: ='GRILLE Cat B CS EXT'!B7 -> Echelon | S41: ='GRILLE Cat B CS EXT'!C7 -> Durée (en mois) | T41: ='GRILLE Cat B CS EXT'!D7 -> Indice Majoré
A43: Pour information, la valeur brute du point d'indice | R43: ='GRILLE Cat B CS EXT'!B9 -> 1 | S43: ='GRILLE Cat B CS EXT'!C9 -> 12 | T43: ='GRILLE Cat B CS EXT'!D9 -> 445
R45: ='GRILLE Cat B CS EXT'!B11 -> 2 | S45: ='GRILLE Cat B CS EXT'!C11 -> 24 | T45: ='GRILLE Cat B CS EXT'!D11 -> 461
A46: est de | C46: =RECAPITULATIF!D13 -> 4.686 | E46: au | F46: =RECAPITULATIF!D15 -> 2019-01-01
R47: ='GRILLE Cat B CS EXT'!B13 -> 3 | S47: ='GRILLE Cat B CS EXT'!C13 -> 36 | T47: ='GRILLE Cat B CS EXT'!D13 -> 485
A49: Soit un gain net mensuel de : | G49: =I40*C46*0.8315 -> 151.959951 | R49: ='GRILLE Cat B CS EXT'!B15 -> 4 | S49: ='GRILLE Cat B CS EXT'!C15 -> 36 | T49: ='GRILLE Cat B CS EXT'!D15 -> 510
R51: ='GRILLE Cat B CS EXT'!B17 -> 5 | S51: ='GRILLE Cat B CS EXT'!C17 -> 48 | T51: ='GRILLE Cat B CS EXT'!D17 -> 534
R53: ='GRILLE Cat B CS EXT'!B19 -> 6 | S53: ='GRILLE Cat B CS EXT'!C19 -> 36 | T53: ='GRILLE Cat B CS EXT'!D19 -> 555
A54: Vos représentant-e-s SUD Santé Sociaux | I54: =RECAPITULATIF!D21 -> 35 | K54: sont à votre disposition
A55: pour tous renseignements complémentaires au poste : | M55: =RECAPITULATIF!D17 -> 2886 | R55: ='GRILLE Cat B CS EXT'!B21 -> 7 | S55: ='GRILLE Cat B CS EXT'!C21 -> 48 | T55: ='GRILLE Cat B CS EXT'!D21 -> 569
R57: ='GRILLE Cat B CS EXT'!B23 -> 8 | S57: ='GRILLE Cat B CS EXT'!C23 -> 0 | T57: ='GRILLE Cat B CS EXT'!D23 -> 587
R59: ='GRILLE Cat B CN EXT'!B25 -> 0 | S59: ='GRILLE Cat B CN EXT'!C25 -> 0 | T59: ='GRILLE Cat B CN EXT'!D25 -> 0
A60: Recevez toutes nos salutations.
R61: ='GRILLE Cat B CN EXT'!B27 -> 0 | S61: ='GRILLE Cat B CN EXT'!C27 -> 0 | T61: ='GRILLE Cat B CN EXT'!D27 -> 0
A63: =RECAPITULATIF!B5 -> Madame Françoise LAUTROU et Madame PERROT Anne
A65: SUD Santé Sociaux | E65: =RECAPITULATIF!D21 -> 35
A70: Tél : | B70: =RECAPITULATIF!D19 -> 299212886
A71: Mél : | C71: =RECAPITULATIF!C23 -> sudsante@ch-stmalo.fr
A72: =RECAPITULATIF!B25 -> Site Départemental Sud | F72: =RECAPITULATIF!D25 -> http://www.sudsantesociaux35.org

Sheet CAT B SE
B2: Selectionnez le Grade concerné par l'avancement d'échelon

Sheet GRILLE Cat B SE1
B2: Cat B Socio-Éducative Moniteur-Éducateur Animateur Hospitalier
B7: Echelon | C7: Durée (en mois) | D7: Indice Majoré
B9: 1 | C9: 24 | D9: 339
B11: 2 | C11: 24 | D11: 344
B13: 3 | C13: 24 | D13: 349
B15: 4 | C15: 24 | D15: 356
B17: 5 | C17: 24 | D17: 366
B19: 6 | C19: 24 | D19: 379
B21: 7 | C21: 24 | D21: 394
B23: 8 | C23: 36 | D23: 413
B25: 9 | C25: 36 | D25: 429
B27: 10 | C27: 36 | D27: 440
B29: 11 | C29: 36 | D29: 453
B31: 12 | C31: 48 | D31: 474
B33: 13 | D33: 498

Sheet GRILLE Cat B SE2
B2: Cat B Socio-Éducative Moniteur-Éducateur Principal Animateur Hospitalier 2ème Classe
B7: Echelon | C7: Durée (en mois) | D7: Indice Majoré
B9: 1 | C9: 24 | D9: 356
B11: 2 | C11: 24 | D11: 362
B13: 3 | C13: 24 | D13: 369
B15: 4 | C15: 24 | D15: 379
B17: 5 | C17: 24 | D17: 390
B19: 6 | C19: 24 | D19: 401
B21: 7 | C21: 24 | D21: 416
B23: 8 | C23: 36 | D23: 436
B25: 9 | C25: 36 | D25: 452
B27: 10 | C27: 36 | D27: 461
B29: 11 | C29: 36 | D29: 480
B31: 12 | C31: 48 | D31: 504
B33: 13 | D33: 534
